Organisation Name,Organisation Code,Effective Date,Directorate,Service Category,Service Category URI,Supplier Name,Payment Date,Transaction Number,Net Amount,Irrecoverable VAT,Purpose Of The Expenditure,Merchant Category,
Wyre Council,http://opendatacommunities.org/doc/district-council/wyre,30/12/2020,People and Places,Planning and Development Servs,132C,Jpi Media Publishing Ltd,15/12/2020,PE131723,345.60,0.00,Press Notice Blackpool Gazette And Garstang Courier 28/10/20,Advertising - Statutory Notices,
Wyre Council,http://opendatacommunities.org/doc/district-council/wyre,30/12/2020,People and Places,Planning and Development Servs,132C,Jpi Media Publishing Ltd,15/12/2020,PE131722,518.40,0.00,Press Notice Blackpool Gazette And Garstang Courier 07/10/20,Advertising - Statutory Notices,
Wyre Council,http://opendatacommunities.org/doc/district-council/wyre,30/12/2020,People and Places,Support Services,135B,M J Wilkinson,08/12/2020,PE131532,310.56,0.00,Misc Labour Generic Emt,Agency Staff,
Wyre Council,http://opendatacommunities.org/doc/district-council/wyre,30/12/2020,People and Places,Support Services,135B,M J Wilkinson,09/12/2020,PE131533,375.26,0.00,Misc Labour Generic Emt,Agency Staff,
Wyre Council,http://opendatacommunities.org/doc/district-council/wyre,30/12/2020,People and Places,Support Services,135B,M J Wilkinson,09/12/2020,PE131535,375.26,0.00,Misc Labour Generic Emt,Agency Staff,
Wyre Council,http://opendatacommunities.org/doc/district-council/wyre,30/12/2020,People and Places,Support Services,135B,M J Wilkinson,09/12/2020,PE131534,478.78,0.00,Misc Labour Generic Emt,Agency Staff,
Wyre Council,http://opendatacommunities.org/doc/district-council/wyre,30/12/2020,People and Places,Planning and Development Servs,132C,Evolution Security Services Nw Ltd,07/12/2020,PE131341,350.00,0.00,Invoice 85Security For Fleetwood Market,Agency Staff,
Wyre Council,http://opendatacommunities.org/doc/district-council/wyre,30/12/2020,People and Places,Planning and Development Servs,132C,Evolution Security Services Nw Ltd,07/12/2020,PE131221,575.00,0.00,Invoice 84Security For Fleetwood Market,Agency Staff,
Wyre Council,http://opendatacommunities.org/doc/district-council/wyre,30/12/2020,People and Places,Planning and Development Servs,132C,Evolution Security Services Nw Ltd,14/12/2020,PE131616,350.00,0.00,Security Services Invoice Number 87,Agency Staff,
Wyre Council,http://opendatacommunities.org/doc/district-council/wyre,30/12/2020,Resources,Support Services,135B,Butler Rose,21/12/2020,RS131440,1800.00,0.00,Timesheets For Redact For The Period 18/10/20 - 31/01/21,Agency Staff,
Wyre Council,http://opendatacommunities.org/doc/district-council/wyre,30/12/2020,Resources,Support Services,135B,Butler Rose,21/12/2020,RS131795,1800.00,0.00,Timesheets For Redact For The Period 18/10/20 - 31/01/21,Agency Staff,
Wyre Council,http://opendatacommunities.org/doc/district-council/wyre,30/12/2020,Resources,Support Services,135B,Butler Rose,11/12/2020,RS131609,1800.00,0.00,Timesheets For Redact For The Period 18/10/20 - 31/01/21,Agency Staff,
Wyre Council,http://opendatacommunities.org/doc/district-council/wyre,30/12/2020,Resources,Support Services,135B,Butler Rose,15/12/2020,RS131698,1800.00,0.00,Timesheets For Redact For The Period 18/10/20 - 31/01/21,Agency Staff,
Wyre Council,http://opendatacommunities.org/doc/district-council/wyre,30/12/2020,People and Places,Planning and Development Servs,132C,M D Security,11/12/2020,PE131453,84.00,0.00,Works Completed,Alarm Systems And Security - Annual,
Wyre Council,http://opendatacommunities.org/doc/district-council/wyre,30/12/2020,People and Places,Cultural and Related Services,132A,M D Security,07/12/2020,PE131133,430.00,0.00,Works Completed,Alarm Systems And Security - Annual,
Wyre Council,http://opendatacommunities.org/doc/district-council/wyre,30/12/2020,People and Places,Cultural and Related Services,132A,M D Security,07/12/2020,PE131132,256.00,0.00,Work Carried Out At Garstang Tic,Alarm Systems And Security - Annual,
Wyre Council,http://opendatacommunities.org/doc/district-council/wyre,30/12/2020,People and Places,Planning and Development Servs,132C,M D Security,17/12/2020,PE131712,85.00,0.00,Work Carried Out At Victoria Square,Alarm Systems And Security - Responsive,
Wyre Council,http://opendatacommunities.org/doc/district-council/wyre,30/12/2020,People and Places,Planning and Development Servs,132C,M D Security,07/12/2020,PE131331,85.00,0.00,Work Carried Out At Fleetwood Market,Alarm Systems And Security - Responsive,
Wyre Council,http://opendatacommunities.org/doc/district-council/wyre,30/12/2020,People and Places,Cultural and Related Services,132A,M D Security,07/12/2020,PE131291,189.50,0.00,Work Carried Out At Rossall Point,Alarm Systems And Security - Responsive,
Wyre Council,http://opendatacommunities.org/doc/district-council/wyre,30/12/2020,People and Places,Environmental Services,132B,Andrew Signs Limited,07/12/2020,PE131412,360.00,0.00,To Supply As Already Received Various Signs,Amenity And Information Signs,
Wyre Council,http://opendatacommunities.org/doc/district-council/wyre,30/12/2020,Resources,Central Services to the Public,131C,Preston City Council,21/12/2020,RS131835,-1040.38,0.00,Supplies Creidt For This Invoice Because One Item Was Charged At 10% Vat,Amenity And Information Signs,
Wyre Council,http://opendatacommunities.org/doc/district-council/wyre,30/12/2020,Resources,Central Services to the Public,131C,Preston City Council,21/12/2020,RS129753,1040.38,0.00,Supplies Creidt For This Invoice Because One Item Was Charged At 10% Vat,Amenity And Information Signs,
Wyre Council,http://opendatacommunities.org/doc/district-council/wyre,30/12/2020,Resources,Central Services to the Public,131C,Preston City Council,21/12/2020,RS129753,492.50,0.00,Supplies Creidt For This Invoice Because One Item Was Charged At 10% Vat,Amenity And Information Signs,
Wyre Council,http://opendatacommunities.org/doc/district-council/wyre,30/12/2020,Resources,Central Services to the Public,131C,Preston City Council,21/12/2020,RS131816,882.95,0.00,"32 X Coronavirus 2M Banners2 Kinds, Split As Follows:8 X Mesh Gov Message (Blue)8 X Vinyl Gov Message (Blue)8 X Mesh Friendly Message (Park Img)8 X Vinyl Friendly Message (Park Img)All With Eyelets",Amenity And Information Signs,
Wyre Council,http://opendatacommunities.org/doc/district-council/wyre,30/12/2020,Resources,Central Services to the Public,131C,Preston City Council,21/12/2020,RS131816,605.16,0.00,Coronavirus 2M Banners10 X Gov Message On Mesh (Blue)12 X Friendly Message On Mesh (Park Img)All With Eyelets,Amenity And Information Signs,
Wyre Council,http://opendatacommunities.org/doc/district-council/wyre,30/12/2020,Resources,Cultural and Related Services,132A,Preston City Council,21/12/2020,RS131816,26.70,0.00,2 X Statutory Bathing Notices,Amenity And Information Signs,
Wyre Council,http://opendatacommunities.org/doc/district-council/wyre,30/12/2020,Resources,Cultural and Related Services,132A,Preston City Council,21/12/2020,RS129753,26.70,0.00,Supplies Creidt For This Invoice Because One Item Was Charged At 10% Vat,Amenity And Information Signs,
Wyre Council,http://opendatacommunities.org/doc/district-council/wyre,30/12/2020,People and Places,Planning and Development Servs,132C,Schneider Electric Ltd,07/12/2020,PE130133,645.50,0.00,Maintenance Support For Fleetwood Market For The Period 01/09-2019-29/0220,Annual Building Maintenance,
Wyre Council,http://opendatacommunities.org/doc/district-council/wyre,30/12/2020,People and Places,Cultural and Related Services,132A,Energy Assessors North West,07/12/2020,PE131451,175.00,0.00,R13496,Annual Building Maintenance,
Wyre Council,http://opendatacommunities.org/doc/district-council/wyre,30/12/2020,People and Places,Planning and Development Servs,132C,Energy Assessors North West,07/12/2020,PE131451,175.00,0.00,R13495 Energy Certificsates,Annual Building Maintenance,
Wyre Council,http://opendatacommunities.org/doc/district-council/wyre,30/12/2020,People and Places,Support Services,135B,Energy Assessors North West,07/12/2020,PE131451,175.00,0.00,R13497,Annual Building Maintenance,
Wyre Council,http://opendatacommunities.org/doc/district-council/wyre,30/12/2020,People and Places,Planning and Development Servs,132C,Opal Design Ltd,07/12/2020,PE131371,2735.00,0.00,Works Completed,Annual Building Maintenance,
Wyre Council,http://opendatacommunities.org/doc/district-council/wyre,30/12/2020,People and Places,Planning and Development Servs,132C,Opal Design Ltd,21/12/2020,PE131772,59.37,0.00,Works At Fleetwood Market,Annual Building Maintenance,
Wyre Council,http://opendatacommunities.org/doc/district-council/wyre,30/12/2020,People and Places,Support Services,135B,Opal Design Ltd,07/12/2020,PE131370,895.00,0.00,Work Carried Out At Civic Centre,Annual Building Maintenance,
Wyre Council,http://opendatacommunities.org/doc/district-council/wyre,30/12/2020,People and Places,Planning and Development Servs,132C,Total Fire Group Limited,22/12/2020,PE131749,800.00,0.00,Fire Risk Assessment At Copse Road,Annual Building Maintenance,
Wyre Council,http://opendatacommunities.org/doc/district-council/wyre,30/12/2020,People and Places,Cultural and Related Services,132A,Garry Carr Building Services Ltd,07/12/2020,PE131282,656.00,0.00,Clean Gutters And Foor Outlest At Fleetwood Leisure Centre,Annual Building Maintenance,
Wyre Council,http://opendatacommunities.org/doc/district-council/wyre,30/12/2020,Resources,Corporate and Democratic Core,131A,Pr Chauffeuring Services,14/12/2020,RS131622,750.00,0.00,For Supply Of Attendant/Chauffeur Services For 2020/2021.,Attendant Chauffeur Service,
Wyre Council,http://opendatacommunities.org/doc/district-council/wyre,30/12/2020,People and Places,Environmental Services,132B,Lancashire County Council,15/12/2020,PE131715,20.00,0.00,"For Asbestos Testing - 1 Crystal Road, Thornton Cleveleys",Boarding Up Premises/House Clearance,
Wyre Council,http://opendatacommunities.org/doc/district-council/wyre,30/12/2020,People and Places,Environmental Services,132B,Lancashire County Council,15/12/2020,PE131714,20.00,0.00,"Asbestos Testing - 10 Moresby Avenue, Blackpool",Boarding Up Premises/House Clearance,
Wyre Council,http://opendatacommunities.org/doc/district-council/wyre,30/12/2020,People and Places,Environmental Services,132B,Lancashire County Council,15/12/2020,PE131716,20.00,0.00,Asbestos Testing - Jameson Road,Boarding Up Premises/House Clearance,
Wyre Council,http://opendatacommunities.org/doc/district-council/wyre,30/12/2020,People and Places,Parking Services,133F,Nsl Services Group,11/12/2020,PE131623,453.55,0.00,November Charges,Cash Collection Security Service,
Wyre Council,http://opendatacommunities.org/doc/district-council/wyre,30/12/2020,People and Places,Parking Services,133F,Nsl Services Group,11/12/2020,PE131624,711.36,0.00,October Charges,Cash Collection Security Service,
Wyre Council,http://opendatacommunities.org/doc/district-council/wyre,30/12/2020,People and Places,Cultural and Related Services,132A,Nsl Services Group,11/12/2020,PE131623,18.68,0.00,November Charges,Cash Collection Security Service,
Wyre Council,http://opendatacommunities.org/doc/district-council/wyre,30/12/2020,People and Places,Planning and Development Servs,132C,Nsl Services Group,11/12/2020,PE131624,68.40,0.00,October Charges,Cash Collection Security Service,
Wyre Council,http://opendatacommunities.org/doc/district-council/wyre,30/12/2020,People and Places,Planning and Development Servs,132C,Nsl Services Group,11/12/2020,PE131623,36.92,0.00,November Charges,Cash Collection Security Service,
Wyre Council,http://opendatacommunities.org/doc/district-council/wyre,30/12/2020,People and Places,Support Services,135B,Nsl Services Group,11/12/2020,PE131623,71.05,0.00,November Charges,Cash Collection Security Service,
Wyre Council,http://opendatacommunities.org/doc/district-council/wyre,30/12/2020,People and Places,Support Services,135B,Nsl Services Group,11/12/2020,PE131624,75.24,0.00,October Charges,Cash Collection Security Service,
Wyre Council,http://opendatacommunities.org/doc/district-council/wyre,30/12/2020,Resources,Planning and Development Servs,132C,Konica Minolta Business Solutions Uk Ltd,21/12/2020,RS131768,122.59,0.00,Fleetwood Market,Central Printer/Copier Expenses,
Wyre Council,http://opendatacommunities.org/doc/district-council/wyre,30/12/2020,Resources,Cultural and Related Services,132A,Konica Minolta Business Solutions Uk Ltd,15/12/2020,RS131226,1.41,0.00,Garstang Tic,Central Printer/Copier Expenses,
Wyre Council,http://opendatacommunities.org/doc/district-council/wyre,30/12/2020,Resources,Support Services,135B,Konica Minolta Business Solutions Uk Ltd,15/12/2020,RS131664,41.24,0.00,Quarterly Usage Charges For 2020/21Stanah Wyre Estuary Country Park,Central Printer/Copier Expenses,
Wyre Council,http://opendatacommunities.org/doc/district-council/wyre,30/12/2020,People and Places,Street Lighting,133C,Preesall Town Council,07/12/2020,PE131439,3200.00,0.00,Grant For Preesall Festive Lights 2020,Christmas Lights,
Wyre Council,http://opendatacommunities.org/doc/district-council/wyre,30/12/2020,People and Places,Street Lighting,133C,Thornton Festive Lights,07/12/2020,PE131438,2300.00,0.00,Grant For Thornton Festive Lights 2020,Christmas Lights,
Wyre Council,http://opendatacommunities.org/doc/district-council/wyre,30/12/2020,People and Places,Street Lighting,133C,Fleetwood Town Council,07/12/2020,PE131436,3200.00,0.00,Grant For Fleetwood Festive Lights 2020,Christmas Lights,
Wyre Council,http://opendatacommunities.org/doc/district-council/wyre,30/12/2020,People and Places,Street Lighting,133C,Poulton Partnership,07/12/2020,PE131437,3200.00,0.00,Grant For Poulton-Le-Fylde Festive  Lights 2020,Christmas Lights,
Wyre Council,http://opendatacommunities.org/doc/district-council/wyre,30/12/2020,People and Places,Street Lighting,133C,Friends Of Cleveleys Christmas Tree Appeal,07/12/2020,PE131479,1500.00,0.00,Grant For Cleveleys Festive Lights 2020,Christmas Lights,
Wyre Council,http://opendatacommunities.org/doc/district-council/wyre,30/12/2020,Resources,Support Services,135B,Key Engineering & Hygiene Supplies Ltd,10/12/2020,RS131577,48.60,0.00,Azure Foam Wash Soap 1 Litre Cartridge,Cleaning Materials,
Wyre Council,http://opendatacommunities.org/doc/district-council/wyre,30/12/2020,Resources,Support Services,135B,Key Engineering & Hygiene Supplies Ltd,10/12/2020,RS131577,13.56,0.00,Thickened Bleach 750Ml,Cleaning Materials,
Wyre Council,http://opendatacommunities.org/doc/district-council/wyre,30/12/2020,Resources,Support Services,135B,Key Engineering & Hygiene Supplies Ltd,10/12/2020,RS131577,18.00,0.00,Eaufresh Non Acidic Pot Pourri Toilet Cleaner 1 Ltr,Cleaning Materials,
Wyre Council,http://opendatacommunities.org/doc/district-council/wyre,30/12/2020,Resources,Support Services,135B,Key Engineering & Hygiene Supplies Ltd,10/12/2020,RS131577,10.92,0.00,Clear Window Cleaner 750Ml,Cleaning Materials,
Wyre Council,http://opendatacommunities.org/doc/district-council/wyre,30/12/2020,Resources,Support Services,135B,Key Engineering & Hygiene Supplies Ltd,10/12/2020,RS131577,49.85,0.00,White 2Ply Luxury Toilet Roll 320 40 Per Pack,Cleaning Materials,
Wyre Council,http://opendatacommunities.org/doc/district-council/wyre,30/12/2020,Resources,Support Services,135B,Key Engineering & Hygiene Supplies Ltd,10/12/2020,RS131577,5.00,0.00,Yellow Marigold Gloves Medium Ea,Cleaning Materials,
Wyre Council,http://opendatacommunities.org/doc/district-council/wyre,30/12/2020,Resources,Support Services,135B,Key Engineering & Hygiene Supplies Ltd,10/12/2020,RS131577,60.80,0.00,1 Ply Blue Interfold 3600 Sheets,Cleaning Materials,
Wyre Council,http://opendatacommunities.org/doc/district-council/wyre,30/12/2020,Resources,Support Services,135B,Key Engineering & Hygiene Supplies Ltd,10/12/2020,RS131577,19.74,0.00,Medium Black Refuse Sack 18X29X34 100G,Cleaning Materials,
Wyre Council,http://opendatacommunities.org/doc/district-council/wyre,30/12/2020,Resources,Support Services,135B,Key Engineering & Hygiene Supplies Ltd,10/12/2020,RS131577,4.20,0.00,20 X 15 Bleached Dish Cloths Ea,Cleaning Materials,
Wyre Council,http://opendatacommunities.org/doc/district-council/wyre,30/12/2020,Resources,Support Services,135B,Key Engineering & Hygiene Supplies Ltd,10/12/2020,RS131577,3.00,0.00,Red Stripe Dish Cloth Ea,Cleaning Materials,
Wyre Council,http://opendatacommunities.org/doc/district-council/wyre,30/12/2020,Resources,Support Services,135B,Key Engineering & Hygiene Supplies Ltd,10/12/2020,RS131577,5.78,0.00,Evans Foaming Lemon Soap,Cleaning Materials,
Wyre Council,http://opendatacommunities.org/doc/district-council/wyre,30/12/2020,Resources,Support Services,135B,Key Engineering & Hygiene Supplies Ltd,10/12/2020,RS131577,22.68,0.00,Sanitising Spray 750 Ml,Cleaning Materials,
Wyre Council,http://opendatacommunities.org/doc/district-council/wyre,30/12/2020,Resources,Support Services,135B,Key Engineering & Hygiene Supplies Ltd,10/12/2020,RS131577,27.60,0.00,Liquid Spray Polish 750Ml Trigger Spray,Cleaning Materials,
Wyre Council,http://opendatacommunities.org/doc/district-council/wyre,30/12/2020,Resources,Support Services,135B,Key Engineering & Hygiene Supplies Ltd,10/12/2020,RS131577,21.48,0.00,Pot Pourri Air Freshener,Cleaning Materials,
Wyre Council,http://opendatacommunities.org/doc/district-council/wyre,30/12/2020,Resources,Support Services,135B,Key Engineering & Hygiene Supplies Ltd,10/12/2020,RS131577,13.10,0.00,Lavatory Brush With Holder,Cleaning Materials,
Wyre Council,http://opendatacommunities.org/doc/district-council/wyre,30/12/2020,People and Places,Planning and Development Servs,132C,Key Engineering & Hygiene Supplies Ltd,11/12/2020,PE131574,41.28,0.00,Low Foam Cleaner Heavy,Cleaning Materials,
Wyre Council,http://opendatacommunities.org/doc/district-council/wyre,30/12/2020,People and Places,Planning and Development Servs,132C,Key Engineering & Hygiene Supplies Ltd,11/12/2020,PE131574,21.84,0.00,Fresh Air + Fabric Aerosol 400Ml,Cleaning Materials,
Wyre Council,http://opendatacommunities.org/doc/district-council/wyre,30/12/2020,People and Places,Planning and Development Servs,132C,Key Engineering & Hygiene Supplies Ltd,11/12/2020,PE131574,183.60,0.00,Extra Strong Black Refuse Sack 18X29X39 180G 90Ltr (Per 200),Cleaning Materials,
Wyre Council,http://opendatacommunities.org/doc/district-council/wyre,30/12/2020,People and Places,Planning and Development Servs,132C,Key Engineering & Hygiene Supplies Ltd,11/12/2020,PE131574,140.25,0.00,2Ply White Jumbo Toilet Roll,Cleaning Materials,
Wyre Council,http://opendatacommunities.org/doc/district-council/wyre,30/12/2020,People and Places,Planning and Development Servs,132C,Key Engineering & Hygiene Supplies Ltd,11/12/2020,PE131574,37.20,0.00,Disinfectant Pine,Cleaning Materials,
Wyre Council,http://opendatacommunities.org/doc/district-council/wyre,30/12/2020,People and Places,Planning and Development Servs,132C,Key Engineering & Hygiene Supplies Ltd,11/12/2020,PE131574,57.84,0.00,Floratile General Purpose  Cleaner 5 Ltr,Cleaning Materials,
Wyre Council,http://opendatacommunities.org/doc/district-council/wyre,30/12/2020,Resources,Central Services to the Public,131C,Key Engineering & Hygiene Supplies Ltd,10/12/2020,RS131577,153.36,0.00,Supply And Deliver 12 X 5L Ensure/5Ltr - Ensure Alcohol Sanitizer 5L Disinfectant Cleaner For Food @ 12.78 Each,Cleaning Materials,
Wyre Council,http://opendatacommunities.org/doc/district-council/wyre,30/12/2020,Resources,Central Services to the Public,131C,Key Engineering & Hygiene Supplies Ltd,10/12/2020,RS131577,30.36,0.00,"12 X Ensure/750Ml, Ensure Alcohol Sanitizer Disinfectant Cleaner For Food @ 2.53 Each   Delivery To Copse Road Depot, Copse Road, Fleetwood, Fy7 6Rp",Cleaning Materials,
Wyre Council,http://opendatacommunities.org/doc/district-council/wyre,30/12/2020,People and Places,Planning and Development Servs,132C,Uprite Scaffold Ltd,21/12/2020,PE131785,960.00,0.00,Erect And Dismantle Scaffold To Eros Statue As Instructed,Cleaning Materials,
Wyre Council,http://opendatacommunities.org/doc/district-council/wyre,30/12/2020,People and Places,Cultural and Related Services,132A,E.On Energy Solutions Limited,17/12/2020,PE131787,1.52,0.00,Electricity Charges,Clock Maintenance - Responsive,
Wyre Council,http://opendatacommunities.org/doc/district-council/wyre,30/12/2020,Resources,Support Services,135B,Avc Wise Ltd,08/12/2020,RS131486,510.83,0.00,Invoice Number: 100939,Commission Fees Etc.,
Wyre Council,http://opendatacommunities.org/doc/district-council/wyre,30/12/2020,People and Places,Environmental Services,132B,Key Engineering & Hygiene Supplies Ltd,10/12/2020,PE131576,55.44,0.00,"Urgent Supply And Deliver Of The Following Gloves:-24 X Thermo Star Gloves, Code Bshblcsgor/09 @ 2.31 Each",Community Payback Scheme,
Wyre Council,http://opendatacommunities.org/doc/district-council/wyre,30/12/2020,People and Places,Environmental Services,132B,Key Engineering & Hygiene Supplies Ltd,10/12/2020,PE131576,20.40,0.00,"24 Click 2000 Mp1 Multi Purpose Gloves, Large @ 0.85 Each",Community Payback Scheme,
Wyre Council,http://opendatacommunities.org/doc/district-council/wyre,30/12/2020,People and Places,Environmental Services,132B,Key Engineering & Hygiene Supplies Ltd,10/12/2020,PE131576,36.00,0.00,"24 X Thermo Grip Gloves In Yellow, Code Pwa1409, Size 9 @ 1.50 Each",Community Payback Scheme,
Wyre Council,http://opendatacommunities.org/doc/district-council/wyre,30/12/2020,People and Places,Environmental Services,132B,Key Engineering & Hygiene Supplies Ltd,10/12/2020,PE131576,107.75,0.00,"30 X Predator Watersafe Pacific Cut 5 Protection In Green, Code J1Wj3/09 @ 4.14 Each",Community Payback Scheme,
Wyre Council,http://opendatacommunities.org/doc/district-council/wyre,30/12/2020,People and Places,Environmental Services,132B,Key Engineering & Hygiene Supplies Ltd,10/12/2020,PE131576,20.40,0.00,"24 X Green Topaz Latex Poly Gloves, Code Bsmp1G, Large  @ 0.85 Each",Community Payback Scheme,
Wyre Council,http://opendatacommunities.org/doc/district-council/wyre,30/12/2020,People and Places,Environmental Services,132B,Key Engineering & Hygiene Supplies Ltd,10/12/2020,PE131576,0.70,0.00,"24 X Pred Red Pu Gloves, Size 9, Code Bfc-J1Pupl/09 @ 70P Each",Community Payback Scheme,
Wyre Council,http://opendatacommunities.org/doc/district-council/wyre,30/12/2020,People and Places,Environmental Services,132B,Key Engineering & Hygiene Supplies Ltd,10/12/2020,PE131576,16.80,0.00,"24 X Pred Red Pu Gloves, Size 10, Code Bfc-J1Pupl/10 @ 70P Each",Community Payback Scheme,
Wyre Council,http://opendatacommunities.org/doc/district-council/wyre,30/12/2020,People and Places,Environmental Services,132B,Key Engineering & Hygiene Supplies Ltd,10/12/2020,PE131576,20.40,0.00,"24 Click 2000 Mp1 Multi Purpose Gloves, Xlarge @ 0.85 Each",Community Payback Scheme,
Wyre Council,http://opendatacommunities.org/doc/district-council/wyre,30/12/2020,People and Places,Environmental Services,132B,Key Engineering & Hygiene Supplies Ltd,10/12/2020,PE131576,36.00,0.00,"24 X Thermo Grip Gloves In Yellow, Code Pwa1410, Size 10 @ 1.50 Each",Community Payback Scheme,
Wyre Council,http://opendatacommunities.org/doc/district-council/wyre,30/12/2020,People and Places,Environmental Services,132B,Key Engineering & Hygiene Supplies Ltd,10/12/2020,PE131576,129.30,0.00,"30 X Predator Watersafe Pacific Cut 5 Protection In Green, Code J1Wj3/10 @ 4.14 Each",Community Payback Scheme,
Wyre Council,http://opendatacommunities.org/doc/district-council/wyre,30/12/2020,People and Places,Environmental Services,132B,Key Engineering & Hygiene Supplies Ltd,10/12/2020,PE131576,20.40,0.00,"24 X Green Topaz Latex Poly Gloves, Code Bsmp1G, Xlarge  @ 0.85 Each",Community Payback Scheme,
Wyre Council,http://opendatacommunities.org/doc/district-council/wyre,30/12/2020,Resources,Central Services to the Public,131C,Orange Pcs Ltd,21/12/2020,RS131691,10.00,0.00,Monthly Charges,Comp Hardware Purchases,
Wyre Council,http://opendatacommunities.org/doc/district-council/wyre,30/12/2020,Resources,Central Services to the Public,131C,Orange Pcs Ltd,17/12/2020,RS131323,36.72,0.00,Monthly Charges,Comp Hardware Purchases,
Wyre Council,http://opendatacommunities.org/doc/district-council/wyre,30/12/2020,People and Places,Planning and Development Servs,132C,Kings Chambers,21/12/2020,PE131804,225.00,0.00,Legal Advice For Lower Boar Enforcement Appeal - 19/00211/Enf,Consultants Fees,
Wyre Council,http://opendatacommunities.org/doc/district-council/wyre,30/12/2020,People and Places,Planning and Development Servs,132C,Kings Chambers,07/12/2020,PE131468,450.00,0.00,Advice On Local Plan Review  2019-2020,Consultants Fees,
Wyre Council,http://opendatacommunities.org/doc/district-council/wyre,30/12/2020,People and Places,Planning and Development Servs,132C,Link Treasury Services Ltd,08/12/2020,PE131426,10500.00,0.00,Fish And Food Processing Park Advice - Project Neptune,Consultants Fees,
Wyre Council,http://opendatacommunities.org/doc/district-council/wyre,30/12/2020,Resources,Planning and Development Servs,132C,Preston City Council,07/12/2020,RS131495,93.44,0.00,Garstang High Street Corex Boards,Consultants Fees,
Wyre Council,http://opendatacommunities.org/doc/district-council/wyre,30/12/2020,People and Places,Planning and Development Servs,132C,Turley Associates Ltd,07/12/2020,PE131401,5834.50,0.00,Commissioning Of Turley Associates To To Update Housing Evidence For Local Plans,Consultants Fees,
Wyre Council,http://opendatacommunities.org/doc/district-council/wyre,30/12/2020,Resources,Central Services to the Public,131C,Inform Cpi,21/12/2020,RS131661,1550.00,0.00,Analyse Local,Consultants Fees,
Wyre Council,http://opendatacommunities.org/doc/district-council/wyre,30/12/2020,People and Places,Planning and Development Servs,132C,Rsk Adas Ltd,22/12/2020,PE131882,900.00,0.00,Agricultural Advice For The Period April 2019 - End March 2020,Consultants Fees,
Wyre Council,http://opendatacommunities.org/doc/district-council/wyre,30/12/2020,People and Places,Planning and Development Servs,132C,Auk Supplies T/A A+D Supplies,11/12/2020,PE131615,1530.00,0.00,Outdoor Dispenser Stand On Wheels - Single Sided,Consultants Fees,
Wyre Council,http://opendatacommunities.org/doc/district-council/wyre,30/12/2020,Resources,Planning and Development Servs,132C,Visual Print And Design Ltd,07/12/2020,RS131510,597.50,0.00,50 X Floor Stickers For Garstang - Reopening High Streets Safely Fund,Consultants Fees,
Wyre Council,http://opendatacommunities.org/doc/district-council/wyre,30/12/2020,People and Places,Planning and Development Servs,132C,Visioning Lab Ltd,10/12/2020,PE131600,1600.00,0.00,"Delivery Of Community Engagement Activities, Review And Making Recommendations On Trails And Wayfinding For Fleetwood High Street",Consultants Fees,
Wyre Council,http://opendatacommunities.org/doc/district-council/wyre,30/12/2020,People and Places,"Cultural, Environ and Planning",137B,Halcrow Group Limited,07/12/2020,PE131411,3653.97,0.00,Wyre Additional Consultancy Support - Updated Proposalprovide Consultancy Support As Per Your Proposal Dated 28Th April 2020 For The Wyre Beach Management Scheme Phase 1 Works.See Attachments On Email From Mike Wilkinson,Consultants Fees (New Ccr),
Wyre Council,http://opendatacommunities.org/doc/district-council/wyre,30/12/2020,People and Places,"Cultural, Environ and Planning",137B,Halcrow Group Limited,07/12/2020,PE131410,1072.26,0.00,"Fao Marcus Phillipsjacobsburderop Parkswindonsn4 Oqdprovide An Environmental Impact Assessment For The Wyre Beach Management Scheme As Per Your Proposal Dated 2Nd April 2020.Cost 118,833.10Exp Code 8273/04022",Consultants Fees (New Ccr),
Wyre Council,http://opendatacommunities.org/doc/district-council/wyre,30/12/2020,People and Places,"Cultural, Environ and Planning",137B,Halcrow Group Limited,07/12/2020,PE131409,2154.59,0.00,Wyre Beach Management Scheme Planning Requirementsprovide Environmental Inputs As Per Your Proposal Dated 15Th April 2020 For The Wyre Beach Management Scheme Phase 1 Works.See Attachments On Email From Mike Wilkinson,Consultants Fees (New Ccr),
Wyre Council,http://opendatacommunities.org/doc/district-council/wyre,30/12/2020,People and Places,"Cultural, Environ and Planning",137B,Ryder Landscape Consultants Ltd,07/12/2020,PE131391,4501.80,0.00,Mount Restoration,Consultants Fees (New Ccr),
Wyre Council,http://opendatacommunities.org/doc/district-council/wyre,30/12/2020,People and Places,"Cultural, Environ and Planning",137B,Ryder Landscape Consultants Ltd,14/12/2020,PE131685,2747.00,0.00,Mount Restoration,Consultants Fees (New Ccr),
Wyre Council,http://opendatacommunities.org/doc/district-council/wyre,30/12/2020,People and Places,"Cultural, Environ and Planning",137B,Ryder Landscape Consultants Ltd,14/12/2020,PE131678,2747.00,0.00,Mount Restoration,Consultants Fees (New Ccr),
Wyre Council,http://opendatacommunities.org/doc/district-council/wyre,30/12/2020,People and Places,Support Services,135B,F M Waste Ltd,21/12/2020,PE131800,180.00,0.00,Skip Empties At Cemeteries In Wyre,Containers Skips And Hire,
Wyre Council,http://opendatacommunities.org/doc/district-council/wyre,30/12/2020,People and Places,Support Services,135B,F M Waste Ltd,21/12/2020,PE131802,240.00,0.00,Skip Empties At Cemeteries In Wyre,Containers Skips And Hire,
Wyre Council,http://opendatacommunities.org/doc/district-council/wyre,30/12/2020,People and Places,Support Services,135B,F M Waste Ltd,21/12/2020,PE131801,100.00,0.00,Skip Empties At Cemeteries In Wyre,Containers Skips And Hire,
Wyre Council,http://opendatacommunities.org/doc/district-council/wyre,30/12/2020,People and Places,"Cultural, Environ and Planning",137B,Eas Electrical Mechanical,21/12/2020,PE131807,1361.47,0.00,Supply And Installation Of Fibre Optic Cable To Fleetwood Market All As Per Your Quote 0273-Qu-Wbc-220720-Sb,Contract (New Ccr),
Wyre Council,http://opendatacommunities.org/doc/district-council/wyre,30/12/2020,People and Places,"Cultural, Environ and Planning",137B,Key Engineering & Hygiene Supplies Ltd,11/12/2020,PE131574,83.66,0.00,Mops And Buckets,Contract (New Ccr),
Wyre Council,http://opendatacommunities.org/doc/district-council/wyre,30/12/2020,Resources,"Cultural, Environ and Planning",137B,Orange Pcs Ltd,17/12/2020,RS131323,65.00,0.00,Monthly Charges,Contract (New Ccr),
Wyre Council,http://opendatacommunities.org/doc/district-council/wyre,30/12/2020,Resources,"Cultural, Environ and Planning",137B,Orange Pcs Ltd,21/12/2020,RS131691,32.50,0.00,Monthly Charges,Contract (New Ccr),
Wyre Council,http://opendatacommunities.org/doc/district-council/wyre,30/12/2020,Resources,"Cultural, Environ and Planning",137B,Orange Pcs Ltd,21/12/2020,RS131691,32.50,0.00,Monthly Charges,Contract (New Ccr),
Wyre Council,http://opendatacommunities.org/doc/district-council/wyre,30/12/2020,People and Places,"Cultural, Environ and Planning",137B,Kompan Ltd,07/12/2020,PE131481,34999.99,0.00,Play Equipment Supply And Installation Works At Jubilee Gardens Per Quotation Dated 18-03-20 And Your Sales Order So230688,Contract (New Ccr),
Wyre Council,http://opendatacommunities.org/doc/district-council/wyre,30/12/2020,People and Places,"Cultural, Environ and Planning",137B,Universal Container Services Ltd,09/12/2020,PE131569,3255.00,0.00,"Supply Of 1 No. New 20 Ft Container Including Lockbox ? 2395.00Paint Externally With Anti Corrosive Paint, Ral Code 1015 ? 275.00Thermo Foil Condensation Prevention Method ? 295.00Padlock ? 50.001 X Delivery To Fleetwood Market Fy7 6Ad",Contract (New Ccr),
Wyre Council,http://opendatacommunities.org/doc/district-council/wyre,30/12/2020,People and Places,"Cultural, Environ and Planning",137B,Rapid Retail Ltd,11/12/2020,PE131052,4080.13,0.00,Kiosks At Fleetwood Market,Contract (New Ccr),
Wyre Council,http://opendatacommunities.org/doc/district-council/wyre,30/12/2020,People and Places,"Cultural, Environ and Planning",137B,Balfour Beatty Civil Engineering Ltd,17/12/2020,PE131788,1247.17,0.00,Wyre Beach Management Scheme Phase 1 ? Preconstruction Works.Fao Chloe Sumnerbalfour Beatty Civil Engineering Ltdchaddock Lane Worsleymanchesterm28 1Xy,Contract (New Ccr),
Wyre Council,http://opendatacommunities.org/doc/district-council/wyre,30/12/2020,People and Places,"Cultural, Environ and Planning",137B,Garry Carr Building Services Ltd,11/12/2020,PE131285,2086.00,0.00,Carry Out Complete Refurbishment Of Existing Staff Flats To Fleetwood Market To Create New Creative/Artist Studio Space All As Per Tender Document,Contract (New Ccr),
Wyre Council,http://opendatacommunities.org/doc/district-council/wyre,30/12/2020,People and Places,"Cultural, Environ and Planning",137B,R Developments Ltd T/A Rosslee Construction,17/12/2020,PE131775,195119.28,0.00,"Work To Restore The Mount Grounds, Pavilion And Lodge In Fleetwood",Contract (New Ccr),
Wyre Council,http://opendatacommunities.org/doc/district-council/wyre,30/12/2020,Resources,Support Services,135B,Socitm Limited,07/12/2020,RS131217,1895.00,0.00,Socitm Essential Membership 2021 - 1St January 2021 - 31St December2021,Corporate And Professional Subscriptions,
Wyre Council,http://opendatacommunities.org/doc/district-council/wyre,30/12/2020,Finance,Current Assets,130B,,04/12/2020,020/002772,20660.92,0.00,Council Tax Refunds Sm 27/11,Council Tax Refunds,
Wyre Council,http://opendatacommunities.org/doc/district-council/wyre,30/12/2020,Finance,Current Assets,130B,,15/12/2020,021/000924,20721.21,0.00,Council Tax Refunds Sm 4/12,Council Tax Refunds,
Wyre Council,http://opendatacommunities.org/doc/district-council/wyre,30/12/2020,Finance,Current Assets,130B,,21/12/2020,022/011751,22217.44,0.00,Council Tax Refunds Sm 11/12,Council Tax Refunds,
Wyre Council,http://opendatacommunities.org/doc/district-council/wyre,30/12/2020,Resources,Planning and Development Servs,132C,Great Eccleston Village Centre Ltd,21/12/2020,RS131844,1334.00,0.00,Corona Virus Paymentref. No: 6218475Inv. No: 286751,Covid-19 Business Support Funding Lrsg C,
Wyre Council,http://opendatacommunities.org/doc/district-council/wyre,30/12/2020,People and Places,Environmental Services,132B,Andrew Signs Limited,07/12/2020,PE131398,61.66,0.00,Supplied And Fixed Graphics To 3 X Van Cads Also Supplied 40Mm Numbers 0-9 As Requested By Gary Scott,Daywork Materials (Excl.Tyres),
Wyre Council,http://opendatacommunities.org/doc/district-council/wyre,30/12/2020,People and Places,Environmental Services,132B,Andrew Signs Limited,07/12/2020,PE131398,61.66,0.00,Supplied And Fixed Graphics To 3 X Van Cads Also Supplied 40Mm Numbers 0-9 As Requested By Gary Scott,Daywork Materials (Excl.Tyres),
Wyre Council,http://opendatacommunities.org/doc/district-council/wyre,30/12/2020,People and Places,Environmental Services,132B,Andrew Signs Limited,07/12/2020,PE131398,61.68,0.00,Supplied And Fixed Graphics To 3 X Van Cads Also Supplied 40Mm Numbers 0-9 As Requested By Gary Scott,Daywork Materials (Excl.Tyres),
Wyre Council,http://opendatacommunities.org/doc/district-council/wyre,30/12/2020,People and Places,Support Services,135B,Fr Sharrock Ltd,07/12/2020,PE131276,564.65,0.00,Parts,Daywork Materials (Excl.Tyres),
Wyre Council,http://opendatacommunities.org/doc/district-council/wyre,30/12/2020,People and Places,Support Services,135B,Fr Sharrock Ltd,21/12/2020,PE131820,136.96,0.00,Various Parts,Daywork Materials (Excl.Tyres),
Wyre Council,http://opendatacommunities.org/doc/district-council/wyre,30/12/2020,People and Places,Environmental Services,132B,Bucher Municipal Limited,07/12/2020,PE131394,209.85,0.00,Various Parts,Daywork Materials (Excl.Tyres),
Wyre Council,http://opendatacommunities.org/doc/district-council/wyre,30/12/2020,People and Places,Environmental Services,132B,Bucher Municipal Limited,16/12/2020,PE131464,26.66,0.00,Various Parts,Daywork Materials (Excl.Tyres),
Wyre Council,http://opendatacommunities.org/doc/district-council/wyre,30/12/2020,People and Places,Environmental Services,132B,Bucher Municipal Limited,21/12/2020,PE131679,174.75,0.00,Various Parts,Daywork Materials (Excl.Tyres),
Wyre Council,http://opendatacommunities.org/doc/district-council/wyre,30/12/2020,People and Places,Environmental Services,132B,Bucher Municipal Limited,11/12/2020,PE131536,101.33,0.00,Various Parts,Daywork Materials (Excl.Tyres),
Wyre Council,http://opendatacommunities.org/doc/district-council/wyre,30/12/2020,People and Places,Environmental Services,132B,Lancashire Daf,11/12/2020,PE131634,213.71,0.00,Parts  V117,Daywork Materials (Excl.Tyres),
Wyre Council,http://opendatacommunities.org/doc/district-council/wyre,30/12/2020,People and Places,Cultural and Related Services,132A,Lancashire Daf,11/12/2020,PE131635,90.00,0.00,Parts,Daywork Materials (Excl.Tyres),
Wyre Council,http://opendatacommunities.org/doc/district-council/wyre,30/12/2020,People and Places,Support Services,135B,Lancashire Daf,11/12/2020,PE131633,117.49,0.00,Parts  V39,Daywork Materials (Excl.Tyres),
Wyre Council,http://opendatacommunities.org/doc/district-council/wyre,30/12/2020,People and Places,Environmental Services,132B,Stuart Taylor International,07/12/2020,PE131349,509.01,0.00,Various Parts,Daywork Materials (Excl.Tyres),
Wyre Council,http://opendatacommunities.org/doc/district-council/wyre,30/12/2020,People and Places,Environmental Services,132B,Stuart Taylor International,07/12/2020,PE131348,158.10,0.00,Parts,Daywork Materials (Excl.Tyres),
Wyre Council,http://opendatacommunities.org/doc/district-council/wyre,30/12/2020,People and Places,Cultural and Related Services,132A,Andrew Curran Ltd,22/12/2020,PE131856,46.38,0.00,Gc6 Bypass Relay,Daywork Materials (Excl.Tyres),
Wyre Council,http://opendatacommunities.org/doc/district-council/wyre,30/12/2020,People and Places,Environmental Services,132B,Andrew Curran Ltd,09/12/2020,PE131547,31.63,0.00,Radio And Ariel Adaptor,Daywork Materials (Excl.Tyres),
Wyre Council,http://opendatacommunities.org/doc/district-council/wyre,30/12/2020,People and Places,Support Services,135B,Andrew Curran Ltd,09/12/2020,PE131546,20.46,0.00,Radio Usb,Daywork Materials (Excl.Tyres),
Wyre Council,http://opendatacommunities.org/doc/district-council/wyre,30/12/2020,People and Places,Environmental Services,132B,Bryt Energy Limited,10/12/2020,PE131499,131.61,0.00,Electricity Charges For The Period 01/10/20-31/10/20,Electricity,
Wyre Council,http://opendatacommunities.org/doc/district-council/wyre,30/12/2020,People and Places,Cultural and Related Services,132A,Bryt Energy Limited,11/12/2020,PE131498,481.33,0.00,Electricity Charges For The Period 01-10-230 - 31/10/20,Electricity,
Wyre Council,http://opendatacommunities.org/doc/district-council/wyre,30/12/2020,People and Places,Planning and Development Servs,132C,Bryt Energy Limited,11/12/2020,PE131529,2505.72,0.00,Electricity Charges For The Period 01/10/20-31/10/20,Electricity,
Wyre Council,http://opendatacommunities.org/doc/district-council/wyre,30/12/2020,People and Places,Support Services,135B,Bryt Energy Limited,11/12/2020,PE131528,4980.76,0.00,Electricity Charges For The Period 01/10/20-31/10/20,Electricity,
Wyre Council,http://opendatacommunities.org/doc/district-council/wyre,30/12/2020,People and Places,Planning and Development Servs,132C,Bryt Energy Limited,11/12/2020,PE131497,987.67,0.00,Electricity Charges For The Period 01/10/20 To 31/10/20,Electricity,
Wyre Council,http://opendatacommunities.org/doc/district-council/wyre,30/12/2020,People and Places,Planning and Development Servs,132C,Bryt Energy Limited,22/12/2020,PE131849,995.36,0.00,Electricity Charges For The Period 01/11/20-30/11/20,Electricity,
Wyre Council,http://opendatacommunities.org/doc/district-council/wyre,30/12/2020,People and Places,Cultural and Related Services,132A,Bryt Energy Limited,15/12/2020,PE131500,131.42,0.00,Electricity Charges For The Period 01/10/20-31/10/20,Electricity,
Wyre Council,http://opendatacommunities.org/doc/district-council/wyre,30/12/2020,People and Places,Environmental Services,132B,E.On Energy Solutions Limited,17/12/2020,PE131787,148.37,0.00,Electricity Charges,Electricity,
Wyre Council,http://opendatacommunities.org/doc/district-council/wyre,30/12/2020,People and Places,Parking Services,133F,E.On Energy Solutions Limited,17/12/2020,PE131787,830.59,0.00,Electricity Charges,Electricity,
Wyre Council,http://opendatacommunities.org/doc/district-council/wyre,30/12/2020,People and Places,Central Services to the Public,131C,Citizens Advice Lancashire,10/12/2020,PE131605,7980.00,0.00,"Cab Covid Additional Hours Service. Fao: Diane Gradwell, Dgradwell@Calw.Org.Uk",Health Protection Project Track And Trac,
Wyre Council,http://opendatacommunities.org/doc/district-council/wyre,30/12/2020,People and Places,Central Services to the Public,131C,Citizens Advice Blackpool,21/12/2020,PE131831,40000.00,0.00,"Vcfse Covid Response Fund Grants, Fao Tracy Hopkins",Health Protection Project Track And Trac,
Wyre Council,http://opendatacommunities.org/doc/district-council/wyre,30/12/2020,Resources,Support Services,135B,Konica Minolta Business Solutions Uk Ltd,14/12/2020,RS131631,558.99,0.00,Rental Charges For 2020/21 For Pro1100 Serial No 1823533444,Hire Of Tools Or Equipment,
Wyre Council,http://opendatacommunities.org/doc/district-council/wyre,30/12/2020,Resources,Support Services,135B,Konica Minolta Business Solutions Uk Ltd,14/12/2020,RS131631,164.46,0.00,Rental Charges For 2020/21 For C448 Serial No 1823440258,Hire Of Tools Or Equipment,
Wyre Council,http://opendatacommunities.org/doc/district-council/wyre,30/12/2020,Resources,Support Services,135B,Konica Minolta Business Solutions Uk Ltd,14/12/2020,RS131430,676.48,0.00,Mfd Copiers Usage 2020/21,Hire Of Tools Or Equipment,
Wyre Council,http://opendatacommunities.org/doc/district-council/wyre,30/12/2020,Resources,Support Services,135B,Konica Minolta Business Solutions Uk Ltd,14/12/2020,RS131429,632.98,0.00,Usage Charges For 2020/21 For C458 Serial No 1823440258,Hire Of Tools Or Equipment,
Wyre Council,http://opendatacommunities.org/doc/district-council/wyre,30/12/2020,Resources,Support Services,135B,Konica Minolta Business Solutions Uk Ltd,14/12/2020,RS131429,121.22,0.00,Usage Charges For 2020/21 For Pro1100 Serial No 1823533444,Hire Of Tools Or Equipment,
Wyre Council,http://opendatacommunities.org/doc/district-council/wyre,30/12/2020,Resources,Support Services,135B,Konica Minolta Business Solutions Uk Ltd,22/12/2020,RS131462,951.84,0.00,Mfd Copiers Rental 2020/21,Hire Of Tools Or Equipment,
Wyre Council,http://opendatacommunities.org/doc/district-council/wyre,30/12/2020,Resources,Support Services,135B,Konica Minolta Business Solutions Uk Ltd,22/12/2020,RS131462,558.81,0.00,Card Readers Paper Cut,Hire Of Tools Or Equipment,
Wyre Council,http://opendatacommunities.org/doc/district-council/wyre,30/12/2020,People and Places,Support Services,135B,M J Wilkinson,09/12/2020,PE131541,80.00,0.00,Hire Of Hitachi 2X19 @ Preesallwed14/10/201 Day @ 40 Per Dayeach Way Transport 2X20,Hire Of Tools Or Equipment,
Wyre Council,http://opendatacommunities.org/doc/district-council/wyre,30/12/2020,People and Places,Support Services,135B,M J Wilkinson,09/12/2020,PE131542,80.00,0.00,Hire Of Hitachi 2X19 @ Fleetwoodmonday 19/10/201 Day @ 40 Per Dayeach Way Transport 2 X 20,Hire Of Tools Or Equipment,
Wyre Council,http://opendatacommunities.org/doc/district-council/wyre,30/12/2020,People and Places,Environmental Services,132B,Poulton Pets Ltd,10/12/2020,PE131595,1200.50,0.00,Provision Of Stray Dog Kennelling Service 2020/21,Impounded Dogs Costs,
Wyre Council,http://opendatacommunities.org/doc/district-council/wyre,30/12/2020,Resources,Central Services to the Public,131C,Corptel Uk,10/12/2020,RS131069,750.00,0.00,Rz98-0012 Plantronics W740,Incidents,
Wyre Council,http://opendatacommunities.org/doc/district-council/wyre,30/12/2020,Resources,Central Services to the Public,131C,Corptel Uk,10/12/2020,RS131069,6.00,0.00,Carriage - Standard Delivery & Packaging,Incidents,
Wyre Council,http://opendatacommunities.org/doc/district-council/wyre,30/12/2020,Resources,Central Services to the Public,131C,Lancashire County Council,07/12/2020,RS131496,573.50,0.00,Wyre Council Con29 Searches For July 2020 - Total 37 @ 15.50,L.C.C. Search Fees,
Wyre Council,http://opendatacommunities.org/doc/district-council/wyre,30/12/2020,Resources,Support Services,135B,Zurich Municipal,21/12/2020,RS131107,1125.00,0.00,I2814- Waring Claim Ref 07182174895,Legal Fees,
Wyre Council,http://opendatacommunities.org/doc/district-council/wyre,30/12/2020,Resources,Support Services,135B,Forbes Solicitors,10/12/2020,RS131598,639.50,0.00,Legal Fees Redact 29/10/2020 - 25/11/2020,Legal Fees,
Wyre Council,http://opendatacommunities.org/doc/district-council/wyre,30/12/2020,Resources,Support Services,135B,Forbes Solicitors,10/12/2020,RS131599,2463.00,0.00,Legal Fees Redact - 29/10/20 - 25/11/20,Legal Fees,
Wyre Council,http://opendatacommunities.org/doc/district-council/wyre,30/12/2020,Resources,Support Services,135B,Forbes Solicitors,21/12/2020,RS131834,1827.80,0.00,Legal Fees - Redact - 29/09/20 - 28/10/20,Legal Fees,
Wyre Council,http://opendatacommunities.org/doc/district-council/wyre,30/12/2020,Resources,Support Services,135B,Forbes Solicitors,22/12/2020,RS131852,774.50,0.00,Legal Fees - Redact - 29/09/20 - 28/10/20,Legal Fees,
Wyre Council,http://opendatacommunities.org/doc/district-council/wyre,30/12/2020,Resources,Planning and Development Servs,132C,23 Essex Street Chambers,11/12/2020,RS131614,2650.00,0.00,Invoice 177721 Relating To Professional Fees Of Mr Asa Tolson. Patel V Wyre Borough Council,Legal Fees,
Wyre Council,http://opendatacommunities.org/doc/district-council/wyre,30/12/2020,People and Places,Environmental Services,132B,Lancashire Daf,11/12/2020,PE131637,91.00,0.00,Mot Test Fee,Licences/Mot Certificates,
Wyre Council,http://opendatacommunities.org/doc/district-council/wyre,30/12/2020,People and Places,Environmental Services,132B,Lancashire Daf,11/12/2020,PE131637,40.00,0.00,Mot Facility Lane Fee,Licences/Mot Certificates,
Wyre Council,http://opendatacommunities.org/doc/district-council/wyre,30/12/2020,People and Places,Cultural and Related Services,132A,Lancashire Daf,11/12/2020,PE131636,113.00,0.00,Mot Test Fee,Licences/Mot Certificates,
Wyre Council,http://opendatacommunities.org/doc/district-council/wyre,30/12/2020,People and Places,Cultural and Related Services,132A,Lancashire Daf,11/12/2020,PE131636,45.00,0.00,Mot Facility Lane Fee,Licences/Mot Certificates,
Wyre Council,http://opendatacommunities.org/doc/district-council/wyre,30/12/2020,People and Places,Support Services,135B,Lancashire Daf,11/12/2020,PE131638,91.00,0.00,Mot Test Fee,Licences/Mot Certificates,
Wyre Council,http://opendatacommunities.org/doc/district-council/wyre,30/12/2020,People and Places,Support Services,135B,Lancashire Daf,11/12/2020,PE131638,40.00,0.00,Mot Facility Lane Fee,Licences/Mot Certificates,
Wyre Council,http://opendatacommunities.org/doc/district-council/wyre,30/12/2020,Resources,Cultural and Related Services,132A,British Telecommunications Plc,08/12/2020,RS131334,54.16,0.00,Annual Bill,Life Saving Costs,
Wyre Council,http://opendatacommunities.org/doc/district-council/wyre,30/12/2020,Resources,Cultural and Related Services,132A,British Telecommunications Plc,08/12/2020,RS131334,121.02,0.00,Annual Bill,Life Saving Costs,
Wyre Council,http://opendatacommunities.org/doc/district-council/wyre,30/12/2020,Resources,Cultural and Related Services,132A,British Telecommunications Plc,08/12/2020,RS131334,40.34,0.00,Annual Bill,Life Saving Costs,
Wyre Council,http://opendatacommunities.org/doc/district-council/wyre,30/12/2020,Resources,Cultural and Related Services,132A,British Telecommunications Plc,17/12/2020,RS131752,54.16,0.00,Annual Bill,Life Saving Costs,
Wyre Council,http://opendatacommunities.org/doc/district-council/wyre,30/12/2020,Resources,Cultural and Related Services,132A,British Telecommunications Plc,17/12/2020,RS131752,121.01,0.00,Annual Bill,Life Saving Costs,
Wyre Council,http://opendatacommunities.org/doc/district-council/wyre,30/12/2020,Resources,Cultural and Related Services,132A,British Telecommunications Plc,17/12/2020,RS131752,40.33,0.00,Annual Bill,Life Saving Costs,
Wyre Council,http://opendatacommunities.org/doc/district-council/wyre,30/12/2020,People and Places,Cultural and Related Services,132A,Harrison External Display Systems,21/12/2020,PE131779,765.00,0.00,2 Flag Poles As Per Quote0000074023,Life Saving Costs,
Wyre Council,http://opendatacommunities.org/doc/district-council/wyre,30/12/2020,People and Places,Cultural and Related Services,132A,Harrison External Display Systems,10/12/2020,PE131555,94.25,0.00,Flagpole Spares As Per Quote No. 0000073885 . Price Including Delivery But Not Vat 188.49,Life Saving Costs,
Wyre Council,http://opendatacommunities.org/doc/district-council/wyre,30/12/2020,People and Places,Cultural and Related Services,132A,Harrison External Display Systems,10/12/2020,PE131555,94.24,0.00,Flagpole Spares As Per Quote No. 0000073885 . Price Including Delivery But Not Vat 188.49,Life Saving Costs,
Wyre Council,http://opendatacommunities.org/doc/district-council/wyre,30/12/2020,People and Places,Cultural and Related Services,132A,I C Brindle And Co Ltd,21/12/2020,PE131627,1234.36,0.00,"Lifebuoy Set 3C 24`` Integ Hsing Poles (Sub-Surface), L/Buoy, Line  8 @ 308.59",Life Saving Costs,
Wyre Council,http://opendatacommunities.org/doc/district-council/wyre,30/12/2020,People and Places,Cultural and Related Services,132A,I C Brindle And Co Ltd,21/12/2020,PE131627,30.50,0.00,Packaging & Delivery,Life Saving Costs,
Wyre Council,http://opendatacommunities.org/doc/district-council/wyre,30/12/2020,People and Places,Cultural and Related Services,132A,I C Brindle And Co Ltd,21/12/2020,PE131627,30.50,0.00,Packaging & Delivery,Life Saving Costs,
Wyre Council,http://opendatacommunities.org/doc/district-council/wyre,30/12/2020,People and Places,Cultural and Related Services,132A,I C Brindle And Co Ltd,21/12/2020,PE131627,1234.36,0.00,"Lifebuoy Set 3C 24`` Integ Hsing Poles (Sub-Surface), L/Buoy, Line  8 @ 308.59",Life Saving Costs,
Wyre Council,http://opendatacommunities.org/doc/district-council/wyre,30/12/2020,People and Places,Planning and Development Servs,132C,Terence Barker Ltd,07/12/2020,PE131483,513.95,0.00,12 Month Contract Agreement For Support And Sim  Services On Wyre Council Fuelling System From 29/11/2020 - 29/11/202112 Months Sim Card Rental @ 249.81 Plus Vat12 Months Support @ 264.14 Plus Vat,Maintenance Of Tools Or Equipment,
Wyre Council,http://opendatacommunities.org/doc/district-council/wyre,30/12/2020,People and Places,Parking Services,133F,Peter Hearn Electrical Ltd,07/12/2020,PE131400,45.00,0.00,"*** Confirmation Order ***Check And Repair Fuse To Meter Gcp014 On High Street, Garstang As Requested By Maria Leeder",Maintenance Of Tools Or Equipment,
Wyre Council,http://opendatacommunities.org/doc/district-council/wyre,30/12/2020,People and Places,Parking Services,133F,Peter Hearn Electrical Ltd,22/12/2020,PE131860,60.00,0.00,"Repairs To Meter Hhr013 - Wheatsheaf Way, Poultondrain Water From Electrical Cabinet, Make Safe And Restart Meter.",Maintenance Of Tools Or Equipment,
Wyre Council,http://opendatacommunities.org/doc/district-council/wyre,30/12/2020,People and Places,Parking Services,133F,Peter Hearn Electrical Ltd,22/12/2020,PE131860,15.00,0.00,"Repairs To Meter Hhr013 - Wheatsheaf Way, Poultondrain Water From Electrical Cabinet, Make Safe And Restart Meter.",Maintenance Of Tools Or Equipment,
Wyre Council,http://opendatacommunities.org/doc/district-council/wyre,30/12/2020,People and Places,Highways,133B,Mark Garner Tree Services Ltd,11/12/2020,PE131665,995.00,0.00,"Quotation 05351 Lowcross Ave Plf ? Mature Maple Crown Raise To 5.25M For Highways, Also Performa 25% Crown Reduction Of Remainder Of Crown ? During Which Ensure Lateral Reductionfrom Property, Clearing All Wires, Reduction In Height.3 Lowcross",Maintenance Of Trees And Shrubs,
Wyre Council,http://opendatacommunities.org/doc/district-council/wyre,30/12/2020,People and Places,Highways,133B,Mark Garner Tree Services Ltd,11/12/2020,PE131665,295.00,0.00,"Quote 0537  Lowcross Avenue O/S 17 ? Large Flowering Cherry ? For Full Crown Raising, Lateral Reduction From Property, Clean Out Of Crossing Branches, And A 1.5M Reduction Back From Tips To Advantageous Growing Points",Maintenance Of Trees And Shrubs,
Wyre Council,http://opendatacommunities.org/doc/district-council/wyre,30/12/2020,People and Places,Highways,133B,Mark Garner Tree Services Ltd,11/12/2020,PE131666,730.00,0.00,Quotation 0535O/S 54 And 56 Rossall Grange Lane Fleetwood: Mature Cherry ? Crown Raise All Around Andreduce Lateral Branches Back From Property.Semi Mature Elm ? Crown Raise All Around And Reduce Lateral Branches Back From Property.Remove Broken,Maintenance Of Trees And Shrubs,
Wyre Council,http://opendatacommunities.org/doc/district-council/wyre,30/12/2020,People and Places,Highways,133B,Dr Tree Surgeons,15/12/2020,PE131721,2250.00,0.00,School Lane Hedgerow - Inskip Prestonthe Reduction Of Hedgerow As Per Plan Provided. Reducing Back To Previous Pollarding Points.,Maintenance Of Trees And Shrubs,
Wyre Council,http://opendatacommunities.org/doc/district-council/wyre,30/12/2020,People and Places,Environmental Services,132B,Andrew Signs Limited,07/12/2020,PE131412,577.30,0.00,To Supply As Already Received Various Signs,Materials And Consumables,
Wyre Council,http://opendatacommunities.org/doc/district-council/wyre,30/12/2020,People and Places,Support Services,135B,Builders Supplies (West Coast) Ltd,21/12/2020,PE131704,15.50,0.00,Materials,Materials And Consumables,
Wyre Council,http://opendatacommunities.org/doc/district-council/wyre,30/12/2020,Resources,Housing General Fund,134A,Builders Supplies (West Coast) Ltd,07/12/2020,RS131471,131.40,0.00,Payment Of Invoice 0002/00285677,Materials And Consumables,
Wyre Council,http://opendatacommunities.org/doc/district-council/wyre,30/12/2020,People and Places,Central Services to the Public,131C,Key Engineering & Hygiene Supplies Ltd,10/12/2020,PE131576,122.60,0.00,"Supply And Deliver 10 Packs Of Centre Feed Blue Rolls (Pack Of 6) @ 12.26 Per Pack   Deliver To Copse Road Depot, Copse Road, Fleetwood, Fy7 6Rp.",Materials And Consumables,
Wyre Council,http://opendatacommunities.org/doc/district-council/wyre,30/12/2020,People and Places,Environmental Services,132B,Killgerm Chemicals Ltd,21/12/2020,PE131736,171.90,0.00,Proshield 60 Coveralls - Pros60W-L,Materials And Consumables,
Wyre Council,http://opendatacommunities.org/doc/district-council/wyre,30/12/2020,People and Places,Environmental Services,132B,Killgerm Chemicals Ltd,21/12/2020,PE131736,34.05,0.00,Disposable Overshoes  - Dispshoe,Materials And Consumables,
Wyre Council,http://opendatacommunities.org/doc/district-council/wyre,30/12/2020,People and Places,Environmental Services,132B,Killgerm Chemicals Ltd,21/12/2020,PE131736,52.48,0.00,Anti Bac Gorilla Wipes - Gorillapk80,Materials And Consumables,
Wyre Council,http://opendatacommunities.org/doc/district-council/wyre,30/12/2020,People and Places,Environmental Services,132B,Killgerm Chemicals Ltd,21/12/2020,PE131736,60.00,0.00,3M Respirator - 3Mresp,Materials And Consumables,
Wyre Council,http://opendatacommunities.org/doc/district-council/wyre,30/12/2020,People and Places,Environmental Services,132B,Killgerm Chemicals Ltd,21/12/2020,PE131736,244.00,0.00,Sorexa D Mouse Bait - Sorexad010K,Materials And Consumables,
Wyre Council,http://opendatacommunities.org/doc/district-council/wyre,30/12/2020,People and Places,Environmental Services,132B,Killgerm Chemicals Ltd,21/12/2020,PE131736,172.00,0.00,Contrac All Weather Blox Contra008K,Materials And Consumables,
Wyre Council,http://opendatacommunities.org/doc/district-council/wyre,30/12/2020,People and Places,Environmental Services,132B,Killgerm Chemicals Ltd,21/12/2020,PE131736,12.12,0.00,Bait Station Warning Sticker - Baitstatwarn,Materials And Consumables,
Wyre Council,http://opendatacommunities.org/doc/district-council/wyre,30/12/2020,People and Places,Environmental Services,132B,Killgerm Chemicals Ltd,21/12/2020,PE131736,63.00,0.00,Af Rat Box - Afratbox,Materials And Consumables,
Wyre Council,http://opendatacommunities.org/doc/district-council/wyre,30/12/2020,People and Places,Environmental Services,132B,Killgerm Chemicals Ltd,21/12/2020,PE131736,7.00,0.00,Red Oblong Bait Tray - Trayno2S0,Materials And Consumables,
Wyre Council,http://opendatacommunities.org/doc/district-council/wyre,30/12/2020,People and Places,Environmental Services,132B,Killgerm Chemicals Ltd,21/12/2020,PE131736,27.00,0.00,Af Advance Mouse Box - Adv100Bla,Materials And Consumables,
Wyre Council,http://opendatacommunities.org/doc/district-council/wyre,30/12/2020,People and Places,Environmental Services,132B,Killgerm Chemicals Ltd,21/12/2020,PE131736,16.34,0.00,Danger Poison Label - Labeldp1,Materials And Consumables,
Wyre Council,http://opendatacommunities.org/doc/district-council/wyre,30/12/2020,People and Places,Environmental Services,132B,H Kirk Engineering (Fylde) Ltd,10/12/2020,PE131589,520.00,0.00,Misc Materialssea Defences,Materials And Consumables,
Wyre Council,http://opendatacommunities.org/doc/district-council/wyre,30/12/2020,People and Places,Support Services,135B,Lyreco Uk Ltd,11/12/2020,PE131557,2.45,0.00,Lyreco A4 Gloss Laminating Pouches 250 Micron (2 X 125) - Pack Of 100,Materials And Consumables,
Wyre Council,http://opendatacommunities.org/doc/district-council/wyre,30/12/2020,People and Places,Support Services,135B,Mc & Ma Stewart (Haulage) Ltd,11/12/2020,PE131626,734.78,0.00,"Supply And Deliver 10 Ton Of 70:30 Coarse Top Dressing @ 73.80 P/T.Delivered To Ashdell, Thornton Early W/B 12/10/20. Please Contact Alex Taylor On 07951 641895 Or If He Does Not Answer Please Call Roger Brocklebank On 07951632177, Thank You",Materials And Consumables,
Wyre Council,http://opendatacommunities.org/doc/district-council/wyre,30/12/2020,People and Places,Environmental Services,132B,Zep Uk Ltd,07/12/2020,PE131405,4600.00,0.00,Supply 1000 Ltrs Malgicide In Container @ 4600.00,Materials And Consumables,
Wyre Council,http://opendatacommunities.org/doc/district-council/wyre,30/12/2020,People and Places,Support Services,135B,Proludic Ltd,21/12/2020,PE131813,28.08,0.00,Tmi2502J Complete T Clamp Including Fixings,Materials And Consumables,
Wyre Council,http://opendatacommunities.org/doc/district-council/wyre,30/12/2020,People and Places,Environmental Services,132B,Mogo Uk,17/12/2020,PE131786,660.00,0.00,Double Sided Face Mask Stickers,Materials And Consumables,
Wyre Council,http://opendatacommunities.org/doc/district-council/wyre,30/12/2020,People and Places,Environmental Services,132B,Mogo Uk,17/12/2020,PE131786,14.90,0.00,Postage Rate 3,Materials And Consumables,
Wyre Council,http://opendatacommunities.org/doc/district-council/wyre,30/12/2020,People and Places,Environmental Services,132B,Elite Precast Concrete Ltd,07/12/2020,PE131408,1955.00,0.00,Supply And Deliver 23 Precast Blocks Epc-Vee-031A@ 85.00 Each,Materials And Consumables,
Wyre Council,http://opendatacommunities.org/doc/district-council/wyre,30/12/2020,People and Places,Environmental Services,132B,Elite Precast Concrete Ltd,07/12/2020,PE131408,410.00,0.00,"Delivery To Chatsworth Depot, Chatsworth Avenue, Fleetwoodplease Contact Bob Greaves About Half An Hour Before Delivery On 07967116043",Materials And Consumables,
Wyre Council,http://opendatacommunities.org/doc/district-council/wyre,30/12/2020,People and Places,Support Services,135B,Andrew Curran Ltd,09/12/2020,PE131543,36.38,0.00,2 X 20L Jerry Can,Materials And Consumables,
Wyre Council,http://opendatacommunities.org/doc/district-council/wyre,30/12/2020,People and Places,Support Services,135B,Andrew Curran Ltd,09/12/2020,PE131544,36.38,0.00,2 X 20L Jerry Can,Materials And Consumables,
Wyre Council,http://opendatacommunities.org/doc/district-council/wyre,30/12/2020,People and Places,Environmental Services,132B,Peter Hearn Electrical Ltd,10/12/2020,PE131548,438.00,0.00,Provide Ip Camera,Materials And Consumables,
Wyre Council,http://opendatacommunities.org/doc/district-council/wyre,30/12/2020,Resources,Housing General Fund,134A,Mobility Care Services,10/12/2020,RS131606,154.00,0.00,Redact,Minor Adaptations,
Wyre Council,http://opendatacommunities.org/doc/district-council/wyre,30/12/2020,Resources,Housing General Fund,134A,Mobility Care Services,10/12/2020,RS131588,85.00,0.00,Redact,Minor Adaptations,
Wyre Council,http://opendatacommunities.org/doc/district-council/wyre,30/12/2020,Resources,Housing General Fund,134A,Mobility Care Services,10/12/2020,RS131587,132.00,0.00,Redact,Minor Adaptations,
Wyre Council,http://opendatacommunities.org/doc/district-council/wyre,30/12/2020,Resources,Housing General Fund,134A,Mobility Care Services,10/12/2020,RS131586,287.00,0.00,Redact,Minor Adaptations,
Wyre Council,http://opendatacommunities.org/doc/district-council/wyre,30/12/2020,Resources,Housing General Fund,134A,Mobility Care Services,10/12/2020,RS131585,488.00,0.00,Redact,Minor Adaptations,
Wyre Council,http://opendatacommunities.org/doc/district-council/wyre,30/12/2020,Resources,Housing General Fund,134A,Mobility Care Services,10/12/2020,RS131584,308.00,0.00,Redact,Minor Adaptations,
Wyre Council,http://opendatacommunities.org/doc/district-council/wyre,30/12/2020,Resources,Housing General Fund,134A,Mobility Care Services,10/12/2020,RS131583,287.00,0.00,Redact,Minor Adaptations,
Wyre Council,http://opendatacommunities.org/doc/district-council/wyre,30/12/2020,Resources,Housing General Fund,134A,Mobility Care Services,10/12/2020,RS131582,133.00,0.00,Redact,Minor Adaptations,
Wyre Council,http://opendatacommunities.org/doc/district-council/wyre,30/12/2020,Resources,Housing General Fund,134A,Mobility Care Services,10/12/2020,RS131581,308.00,0.00,Redact,Minor Adaptations,
Wyre Council,http://opendatacommunities.org/doc/district-council/wyre,30/12/2020,Resources,Housing General Fund,134A,Mobility Care Services,10/12/2020,RS131580,96.00,0.00,Redact,Minor Adaptations,
Wyre Council,http://opendatacommunities.org/doc/district-council/wyre,30/12/2020,Resources,Housing General Fund,134A,Holden Access Solutions Ltd,08/12/2020,RS131507,40.00,0.00,Redact,Minor Adaptations,
Wyre Council,http://opendatacommunities.org/doc/district-council/wyre,30/12/2020,Resources,Housing General Fund,134A,Holden Access Solutions Ltd,08/12/2020,RS131507,268.00,0.00,Redact,Minor Adaptations,
Wyre Council,http://opendatacommunities.org/doc/district-council/wyre,30/12/2020,Resources,Housing General Fund,134A,Holden Access Solutions Ltd,08/12/2020,RS131509,30.00,0.00,Redact,Minor Adaptations,
Wyre Council,http://opendatacommunities.org/doc/district-council/wyre,30/12/2020,Resources,Housing General Fund,134A,Holden Access Solutions Ltd,08/12/2020,RS131509,124.00,0.00,Redact,Minor Adaptations,
Wyre Council,http://opendatacommunities.org/doc/district-council/wyre,30/12/2020,Resources,Housing General Fund,134A,Holden Access Solutions Ltd,08/12/2020,RS131508,30.00,0.00,Redact,Minor Adaptations,
Wyre Council,http://opendatacommunities.org/doc/district-council/wyre,30/12/2020,Resources,Housing General Fund,134A,Holden Access Solutions Ltd,08/12/2020,RS131508,124.00,0.00,Redact,Minor Adaptations,
Wyre Council,http://opendatacommunities.org/doc/district-council/wyre,30/12/2020,Resources,Housing General Fund,134A,J A Dickens Limited,08/12/2020,RS131514,80.00,0.00,Redact,Minor Adaptations,
Wyre Council,http://opendatacommunities.org/doc/district-council/wyre,30/12/2020,Resources,Housing General Fund,134A,J A Dickens Limited,08/12/2020,RS131514,74.00,0.00,Redact,Minor Adaptations,
Wyre Council,http://opendatacommunities.org/doc/district-council/wyre,30/12/2020,Resources,Housing General Fund,134A,J A Dickens Limited,08/12/2020,RS131515,340.00,0.00,Redact,Minor Adaptations,
Wyre Council,http://opendatacommunities.org/doc/district-council/wyre,30/12/2020,Resources,Housing General Fund,134A,J A Dickens Limited,08/12/2020,RS131515,150.00,0.00,Redact,Minor Adaptations,
Wyre Council,http://opendatacommunities.org/doc/district-council/wyre,30/12/2020,Resources,Housing General Fund,134A,J A Dickens Limited,08/12/2020,RS131516,158.00,0.00,Redact,Minor Adaptations,
Wyre Council,http://opendatacommunities.org/doc/district-council/wyre,30/12/2020,Resources,Housing General Fund,134A,J A Dickens Limited,08/12/2020,RS131516,150.00,0.00,Redact,Minor Adaptations,
Wyre Council,http://opendatacommunities.org/doc/district-council/wyre,30/12/2020,Resources,Housing General Fund,134A,J A Dickens Limited,15/12/2020,RS131713,505.00,0.00,Redact,Minor Adaptations,
Wyre Council,http://opendatacommunities.org/doc/district-council/wyre,30/12/2020,Resources,Housing General Fund,134A,J A Dickens Limited,15/12/2020,RS131713,380.00,0.00,Redact,Minor Adaptations,
Wyre Council,http://opendatacommunities.org/doc/district-council/wyre,30/12/2020,Resources,"Cultural, Environ and Planning",137B,Orange Pcs Ltd,17/12/2020,RS131323,19.50,0.00,Monthly Charges,Miscellaneous (New Ccr),
Wyre Council,http://opendatacommunities.org/doc/district-council/wyre,30/12/2020,Resources,"Cultural, Environ and Planning",137B,Orange Pcs Ltd,21/12/2020,RS131691,19.50,0.00,Monthly Charges,Miscellaneous (New Ccr),
Wyre Council,http://opendatacommunities.org/doc/district-council/wyre,30/12/2020,Resources,Central Services to the Public,131C,Orange Pcs Ltd,21/12/2020,RS131691,180.47,0.00,Monthly Charges,Mobile Devices,
Wyre Council,http://opendatacommunities.org/doc/district-council/wyre,30/12/2020,Resources,Central Services to the Public,131C,Orange Pcs Ltd,21/12/2020,RS131691,33.50,0.00,Monthly Charges,Mobile Devices,
Wyre Council,http://opendatacommunities.org/doc/district-council/wyre,30/12/2020,Resources,Corporate and Democratic Core,131A,Orange Pcs Ltd,21/12/2020,RS131691,12.00,0.00,Monthly Charges,Mobile Devices,
Wyre Council,http://opendatacommunities.org/doc/district-council/wyre,30/12/2020,Resources,Corporate and Democratic Core,131A,Orange Pcs Ltd,17/12/2020,RS131323,12.00,0.00,Monthly Charges,Mobile Devices,
Wyre Council,http://opendatacommunities.org/doc/district-council/wyre,30/12/2020,Resources,Corporate and Democratic Core,131A,Orange Pcs Ltd,21/12/2020,RS131691,176.97,0.00,Monthly Charges,Mobile Devices,
Wyre Council,http://opendatacommunities.org/doc/district-council/wyre,30/12/2020,Resources,Cultural and Related Services,132A,Orange Pcs Ltd,21/12/2020,RS131690,16.00,0.00,Monthly Charges,Mobile Devices,
Wyre Council,http://opendatacommunities.org/doc/district-council/wyre,30/12/2020,Resources,Environmental Services,132B,Orange Pcs Ltd,21/12/2020,RS131691,74.00,0.00,Monthly Charges,Mobile Devices,
Wyre Council,http://opendatacommunities.org/doc/district-council/wyre,30/12/2020,Resources,Support Services,135B,Orange Pcs Ltd,21/12/2020,RS131691,19.25,0.00,Monthly Charges,Mobile Devices,
Wyre Council,http://opendatacommunities.org/doc/district-council/wyre,30/12/2020,Resources,Corporate and Democratic Core,131A,Orange Pcs Ltd,17/12/2020,RS131323,158.75,0.00,Monthly Charges,Mobile Devices,
Wyre Council,http://opendatacommunities.org/doc/district-council/wyre,30/12/2020,Resources,Central Services to the Public,131C,Orange Pcs Ltd,17/12/2020,RS131323,33.50,0.00,Monthly Charges,Mobile Devices,
Wyre Council,http://opendatacommunities.org/doc/district-council/wyre,30/12/2020,Resources,Environmental Services,132B,Orange Pcs Ltd,17/12/2020,RS131323,74.00,0.00,Monthly Charges,Mobile Devices,
Wyre Council,http://opendatacommunities.org/doc/district-council/wyre,30/12/2020,Resources,Support Services,135B,Orange Pcs Ltd,17/12/2020,RS131323,19.25,0.00,Monthly Charges,Mobile Devices,
Wyre Council,http://opendatacommunities.org/doc/district-council/wyre,30/12/2020,Resources,Central Services to the Public,131C,Orange Pcs Ltd,21/12/2020,RS131690,48.00,0.00,Monthly Charges,Mobile Devices,
Wyre Council,http://opendatacommunities.org/doc/district-council/wyre,30/12/2020,Resources,Central Services to the Public,131C,Orange Pcs Ltd,21/12/2020,RS131691,21.50,0.00,Monthly Charges,Mobile Devices,
Wyre Council,http://opendatacommunities.org/doc/district-council/wyre,30/12/2020,Resources,Cultural and Related Services,132A,Orange Pcs Ltd,21/12/2020,RS131691,30.00,0.00,Monthly Charges,Mobile Devices,
Wyre Council,http://opendatacommunities.org/doc/district-council/wyre,30/12/2020,Resources,Support Services,135B,Orange Pcs Ltd,21/12/2020,RS131691,171.75,0.00,Monthly Charges,Mobile Devices,
Wyre Council,http://opendatacommunities.org/doc/district-council/wyre,30/12/2020,Resources,Support Services,135B,Orange Pcs Ltd,21/12/2020,RS131691,29.00,0.00,Monthly Charges,Mobile Devices,
Wyre Council,http://opendatacommunities.org/doc/district-council/wyre,30/12/2020,Resources,Support Services,135B,Orange Pcs Ltd,21/12/2020,RS131690,175.50,0.00,Monthly Charges,Mobile Devices,
Wyre Council,http://opendatacommunities.org/doc/district-council/wyre,30/12/2020,Resources,Support Services,135B,Orange Pcs Ltd,21/12/2020,RS131691,18.00,0.00,Monthly Charges,Mobile Devices,
Wyre Council,http://opendatacommunities.org/doc/district-council/wyre,30/12/2020,Resources,Support Services,135B,Orange Pcs Ltd,21/12/2020,RS131691,5.50,0.00,Monthly Charges,Mobile Devices,
Wyre Council,http://opendatacommunities.org/doc/district-council/wyre,30/12/2020,Resources,Support Services,135B,Orange Pcs Ltd,21/12/2020,RS131690,16.00,0.00,Monthly Charges,Mobile Devices,
Wyre Council,http://opendatacommunities.org/doc/district-council/wyre,30/12/2020,Resources,Support Services,135B,Orange Pcs Ltd,21/12/2020,RS131691,11.00,0.00,Monthly Charges,Mobile Devices,
Wyre Council,http://opendatacommunities.org/doc/district-council/wyre,30/12/2020,Resources,Support Services,135B,Orange Pcs Ltd,21/12/2020,RS131691,81.06,0.00,Monthly Charges,Mobile Devices,
Wyre Council,http://opendatacommunities.org/doc/district-council/wyre,30/12/2020,Resources,Support Services,135B,Orange Pcs Ltd,21/12/2020,RS131690,183.00,0.00,Monthly Charges,Mobile Devices,
Wyre Council,http://opendatacommunities.org/doc/district-council/wyre,30/12/2020,Resources,Support Services,135B,Orange Pcs Ltd,21/12/2020,RS131690,51.50,0.00,Monthly Charges,Mobile Devices,
Wyre Council,http://opendatacommunities.org/doc/district-council/wyre,30/12/2020,Resources,Support Services,135B,Orange Pcs Ltd,21/12/2020,RS131691,129.10,0.00,Monthly Charges,Mobile Devices,
Wyre Council,http://opendatacommunities.org/doc/district-council/wyre,30/12/2020,Resources,Support Services,135B,Orange Pcs Ltd,21/12/2020,RS131691,2.75,0.00,Monthly Charges,Mobile Devices,
Wyre Council,http://opendatacommunities.org/doc/district-council/wyre,30/12/2020,Resources,Central Services to the Public,131C,Orange Pcs Ltd,17/12/2020,RS131323,21.79,0.00,Monthly Charges,Mobile Devices,
Wyre Council,http://opendatacommunities.org/doc/district-council/wyre,30/12/2020,Resources,Cultural and Related Services,132A,Orange Pcs Ltd,17/12/2020,RS131323,30.00,0.00,Monthly Charges,Mobile Devices,
Wyre Council,http://opendatacommunities.org/doc/district-council/wyre,30/12/2020,Resources,Support Services,135B,Orange Pcs Ltd,17/12/2020,RS131323,171.75,0.00,Monthly Charges,Mobile Devices,
Wyre Council,http://opendatacommunities.org/doc/district-council/wyre,30/12/2020,Resources,Support Services,135B,Orange Pcs Ltd,17/12/2020,RS131323,29.00,0.00,Monthly Charges,Mobile Devices,
Wyre Council,http://opendatacommunities.org/doc/district-council/wyre,30/12/2020,Resources,Support Services,135B,Orange Pcs Ltd,17/12/2020,RS131323,18.00,0.00,Monthly Charges,Mobile Devices,
Wyre Council,http://opendatacommunities.org/doc/district-council/wyre,30/12/2020,Resources,Support Services,135B,Orange Pcs Ltd,17/12/2020,RS131323,5.50,0.00,Monthly Charges,Mobile Devices,
Wyre Council,http://opendatacommunities.org/doc/district-council/wyre,30/12/2020,Resources,Support Services,135B,Orange Pcs Ltd,17/12/2020,RS131323,11.00,0.00,Monthly Charges,Mobile Devices,
Wyre Council,http://opendatacommunities.org/doc/district-council/wyre,30/12/2020,Resources,Support Services,135B,Orange Pcs Ltd,17/12/2020,RS131323,80.50,0.00,Monthly Charges,Mobile Devices,
Wyre Council,http://opendatacommunities.org/doc/district-council/wyre,30/12/2020,Resources,Support Services,135B,Orange Pcs Ltd,17/12/2020,RS131323,109.50,0.00,Monthly Charges,Mobile Devices,
Wyre Council,http://opendatacommunities.org/doc/district-council/wyre,30/12/2020,Resources,Support Services,135B,Orange Pcs Ltd,17/12/2020,RS131323,2.75,0.00,Monthly Charges,Mobile Devices,
Wyre Council,http://opendatacommunities.org/doc/district-council/wyre,30/12/2020,Resources,Planning and Development Servs,132C,Orange Pcs Ltd,17/12/2020,RS131323,2.75,0.00,Monthly Charges,Mobile Devices,
Wyre Council,http://opendatacommunities.org/doc/district-council/wyre,30/12/2020,Resources,Parking Services,133F,Orange Pcs Ltd,17/12/2020,RS131323,24.25,0.00,Monthly Charges,Mobile Devices,
Wyre Council,http://opendatacommunities.org/doc/district-council/wyre,30/12/2020,Resources,Housing General Fund,134A,Orange Pcs Ltd,17/12/2020,RS131323,107.51,0.00,Monthly Charges,Mobile Devices,
Wyre Council,http://opendatacommunities.org/doc/district-council/wyre,30/12/2020,Resources,Housing General Fund,134A,Orange Pcs Ltd,17/12/2020,RS131323,30.00,0.00,Monthly Charges,Mobile Devices,
Wyre Council,http://opendatacommunities.org/doc/district-council/wyre,30/12/2020,Resources,Housing General Fund,134A,Orange Pcs Ltd,17/12/2020,RS131323,2.75,0.00,Monthly Charges,Mobile Devices,
Wyre Council,http://opendatacommunities.org/doc/district-council/wyre,30/12/2020,Resources,Support Services,135B,Orange Pcs Ltd,17/12/2020,RS131323,36.00,0.00,Monthly Charges,Mobile Devices,
Wyre Council,http://opendatacommunities.org/doc/district-council/wyre,30/12/2020,Resources,Support Services,135B,Orange Pcs Ltd,17/12/2020,RS131323,309.22,0.00,Monthly Charges,Mobile Devices,
Wyre Council,http://opendatacommunities.org/doc/district-council/wyre,30/12/2020,Resources,Support Services,135B,Orange Pcs Ltd,17/12/2020,RS131323,8.25,0.00,Monthly Charges,Mobile Devices,
Wyre Council,http://opendatacommunities.org/doc/district-council/wyre,30/12/2020,Resources,Support Services,135B,Orange Pcs Ltd,17/12/2020,RS131323,61.73,0.00,Monthly Charges,Mobile Devices,
Wyre Council,http://opendatacommunities.org/doc/district-council/wyre,30/12/2020,Resources,Support Services,135B,Orange Pcs Ltd,17/12/2020,RS131323,18.00,0.00,Monthly Charges,Mobile Devices,
Wyre Council,http://opendatacommunities.org/doc/district-council/wyre,30/12/2020,Resources,Support Services,135B,Orange Pcs Ltd,17/12/2020,RS131323,116.00,0.00,Monthly Charges,Mobile Devices,
Wyre Council,http://opendatacommunities.org/doc/district-council/wyre,30/12/2020,Resources,Support Services,135B,Orange Pcs Ltd,17/12/2020,RS131323,12.00,0.00,Monthly Charges,Mobile Devices,
Wyre Council,http://opendatacommunities.org/doc/district-council/wyre,30/12/2020,Resources,Support Services,135B,Orange Pcs Ltd,17/12/2020,RS131323,5.50,0.00,Monthly Charges,Mobile Devices,
Wyre Council,http://opendatacommunities.org/doc/district-council/wyre,30/12/2020,Resources,Support Services,135B,Orange Pcs Ltd,17/12/2020,RS131323,26.50,0.00,Monthly Charges,Mobile Devices,
Wyre Council,http://opendatacommunities.org/doc/district-council/wyre,30/12/2020,Resources,Support Services,135B,Orange Pcs Ltd,17/12/2020,RS131323,101.00,0.00,Monthly Charges,Mobile Devices,
Wyre Council,http://opendatacommunities.org/doc/district-council/wyre,30/12/2020,Resources,Support Services,135B,Orange Pcs Ltd,17/12/2020,RS131323,2.75,0.00,Monthly Charges,Mobile Devices,
Wyre Council,http://opendatacommunities.org/doc/district-council/wyre,30/12/2020,Resources,Support Services,135B,Orange Pcs Ltd,17/12/2020,RS131323,11.00,0.00,Monthly Charges,Mobile Devices,
Wyre Council,http://opendatacommunities.org/doc/district-council/wyre,30/12/2020,Resources,Support Services,135B,Orange Pcs Ltd,17/12/2020,RS131323,86.25,0.00,Monthly Charges,Mobile Devices,
Wyre Council,http://opendatacommunities.org/doc/district-council/wyre,30/12/2020,Resources,Cultural and Related Services,132A,Orange Pcs Ltd,17/12/2020,RS131323,3.00,0.00,Monthly Charges,Mobile Devices,
Wyre Council,http://opendatacommunities.org/doc/district-council/wyre,30/12/2020,Resources,Environmental Services,132B,Orange Pcs Ltd,17/12/2020,RS131323,16.01,0.00,Monthly Charges,Mobile Devices,
Wyre Council,http://opendatacommunities.org/doc/district-council/wyre,30/12/2020,Resources,Cultural and Related Services,132A,Orange Pcs Ltd,21/12/2020,RS131691,3.00,0.00,Monthly Charges,Mobile Devices,
Wyre Council,http://opendatacommunities.org/doc/district-council/wyre,30/12/2020,Resources,Environmental Services,132B,Orange Pcs Ltd,21/12/2020,RS131691,2.75,0.00,Monthly Charges,Mobile Devices,
Wyre Council,http://opendatacommunities.org/doc/district-council/wyre,30/12/2020,Resources,Environmental Services,132B,Orange Pcs Ltd,21/12/2020,RS131690,44.00,0.00,Monthly Charges,Mobile Devices,
Wyre Council,http://opendatacommunities.org/doc/district-council/wyre,30/12/2020,Resources,Planning and Development Servs,132C,Orange Pcs Ltd,21/12/2020,RS131691,2.75,0.00,Monthly Charges,Mobile Devices,
Wyre Council,http://opendatacommunities.org/doc/district-council/wyre,30/12/2020,Resources,Parking Services,133F,Orange Pcs Ltd,21/12/2020,RS131691,24.25,0.00,Monthly Charges,Mobile Devices,
Wyre Council,http://opendatacommunities.org/doc/district-council/wyre,30/12/2020,Resources,Housing General Fund,134A,Orange Pcs Ltd,21/12/2020,RS131691,153.20,0.00,Monthly Charges,Mobile Devices,
Wyre Council,http://opendatacommunities.org/doc/district-council/wyre,30/12/2020,Resources,Housing General Fund,134A,Orange Pcs Ltd,21/12/2020,RS131691,30.00,0.00,Monthly Charges,Mobile Devices,
Wyre Council,http://opendatacommunities.org/doc/district-council/wyre,30/12/2020,Resources,Housing General Fund,134A,Orange Pcs Ltd,21/12/2020,RS131691,2.75,0.00,Monthly Charges,Mobile Devices,
Wyre Council,http://opendatacommunities.org/doc/district-council/wyre,30/12/2020,Resources,Support Services,135B,Orange Pcs Ltd,21/12/2020,RS131691,36.00,0.00,Monthly Charges,Mobile Devices,
Wyre Council,http://opendatacommunities.org/doc/district-council/wyre,30/12/2020,Resources,Support Services,135B,Orange Pcs Ltd,21/12/2020,RS131691,261.25,0.00,Monthly Charges,Mobile Devices,
Wyre Council,http://opendatacommunities.org/doc/district-council/wyre,30/12/2020,Resources,Support Services,135B,Orange Pcs Ltd,21/12/2020,RS131691,8.25,0.00,Monthly Charges,Mobile Devices,
Wyre Council,http://opendatacommunities.org/doc/district-council/wyre,30/12/2020,Resources,Support Services,135B,Orange Pcs Ltd,21/12/2020,RS131691,61.75,0.00,Monthly Charges,Mobile Devices,
Wyre Council,http://opendatacommunities.org/doc/district-council/wyre,30/12/2020,Resources,Support Services,135B,Orange Pcs Ltd,21/12/2020,RS131690,44.00,0.00,Monthly Charges,Mobile Devices,
Wyre Council,http://opendatacommunities.org/doc/district-council/wyre,30/12/2020,Resources,Support Services,135B,Orange Pcs Ltd,21/12/2020,RS131691,12.00,0.00,Monthly Charges,Mobile Devices,
Wyre Council,http://opendatacommunities.org/doc/district-council/wyre,30/12/2020,Resources,Support Services,135B,Orange Pcs Ltd,21/12/2020,RS131690,101.54,0.00,Monthly Charges,Mobile Devices,
Wyre Council,http://opendatacommunities.org/doc/district-council/wyre,30/12/2020,Resources,Support Services,135B,Orange Pcs Ltd,21/12/2020,RS131691,230.91,0.00,Monthly Charges,Mobile Devices,
Wyre Council,http://opendatacommunities.org/doc/district-council/wyre,30/12/2020,Resources,Support Services,135B,Orange Pcs Ltd,21/12/2020,RS131690,74.50,0.00,Monthly Charges,Mobile Devices,
Wyre Council,http://opendatacommunities.org/doc/district-council/wyre,30/12/2020,Resources,Support Services,135B,Orange Pcs Ltd,21/12/2020,RS131691,5.50,0.00,Monthly Charges,Mobile Devices,
Wyre Council,http://opendatacommunities.org/doc/district-council/wyre,30/12/2020,Resources,Support Services,135B,Orange Pcs Ltd,21/12/2020,RS131691,26.50,0.00,Monthly Charges,Mobile Devices,
Wyre Council,http://opendatacommunities.org/doc/district-council/wyre,30/12/2020,Resources,Support Services,135B,Orange Pcs Ltd,21/12/2020,RS131690,55.00,0.00,Monthly Charges,Mobile Devices,
Wyre Council,http://opendatacommunities.org/doc/district-council/wyre,30/12/2020,Resources,Support Services,135B,Orange Pcs Ltd,21/12/2020,RS131690,19.50,0.00,Monthly Charges,Mobile Devices,
Wyre Council,http://opendatacommunities.org/doc/district-council/wyre,30/12/2020,Resources,Support Services,135B,Orange Pcs Ltd,21/12/2020,RS131691,151.00,0.00,Monthly Charges,Mobile Devices,
Wyre Council,http://opendatacommunities.org/doc/district-council/wyre,30/12/2020,Resources,Support Services,135B,Orange Pcs Ltd,21/12/2020,RS131691,2.75,0.00,Monthly Charges,Mobile Devices,
Wyre Council,http://opendatacommunities.org/doc/district-council/wyre,30/12/2020,Resources,Support Services,135B,Orange Pcs Ltd,21/12/2020,RS131691,11.00,0.00,Monthly Charges,Mobile Devices,
Wyre Council,http://opendatacommunities.org/doc/district-council/wyre,30/12/2020,Resources,Support Services,135B,Orange Pcs Ltd,21/12/2020,RS131690,34.75,0.00,Monthly Charges,Mobile Devices,
Wyre Council,http://opendatacommunities.org/doc/district-council/wyre,30/12/2020,Resources,Support Services,135B,Orange Pcs Ltd,21/12/2020,RS131691,86.25,0.00,Monthly Charges,Mobile Devices,
Wyre Council,http://opendatacommunities.org/doc/district-council/wyre,30/12/2020,People and Places,Highways,133B,Andrew Signs Limited,07/12/2020,PE131412,536.00,0.00,To Supply As Already Received Various Signs,Naming Of Streets,
Wyre Council,http://opendatacommunities.org/doc/district-council/wyre,30/12/2020,Finance,Current Assets,130B,,04/12/2020,020/002771,9093.23,0.00,Nndr Refunds Sm 27/11,Nndr Refunds,
Wyre Council,http://opendatacommunities.org/doc/district-council/wyre,30/12/2020,Finance,Current Assets,130B,,15/12/2020,021/000925,27751.71,0.00,Nndr Refunds Sm 4/12,Nndr Refunds,
Wyre Council,http://opendatacommunities.org/doc/district-council/wyre,30/12/2020,Finance,Current Assets,130B,,21/12/2020,022/011752,5655.56,0.00,Nndr Refunds Sm 11/12,Nndr Refunds,
Wyre Council,http://opendatacommunities.org/doc/district-council/wyre,30/12/2020,Resources,Support Services,135B,People Asset Management Ltd,08/12/2020,RS130885,1037.00,0.00,Eap Annual Fee 1/10/20 - 30/9/21,Occupational Health Fees,
Wyre Council,http://opendatacommunities.org/doc/district-council/wyre,30/12/2020,Resources,Support Services,135B,People Asset Management Ltd,07/12/2020,RS130498,990.08,0.00,Occupational Health Monthly Charge April 2020 - March 2021,Occupational Health Fees,
Wyre Council,http://opendatacommunities.org/doc/district-council/wyre,30/12/2020,Resources,Support Services,135B,People Asset Management Ltd,17/12/2020,RS131513,990.08,0.00,Occupational Health Monthly Chargeapril 2020 - March 2021,Occupational Health Fees,
Wyre Council,http://opendatacommunities.org/doc/district-council/wyre,30/12/2020,Resources,Support Services,135B,People Asset Management Ltd,17/12/2020,RS131618,545.60,0.00,Flu Jabs - Nov 2020,Occupational Health Fees,
Wyre Council,http://opendatacommunities.org/doc/district-council/wyre,30/12/2020,People and Places,Environmental Services,132B,Danfo (Uk) Ltd,14/12/2020,PE131688,21492.23,0.00,Public Conveniences ? Maintenance And Cleaning 2020/21,Other Establishments,
Wyre Council,http://opendatacommunities.org/doc/district-council/wyre,30/12/2020,Finance,Collection Fund Revenue Accts,138A,,04/12/2020,020/002779,792770.00,0.00,Other Local Authorities Pcc,Other Local Authorities,
Wyre Council,http://opendatacommunities.org/doc/district-council/wyre,30/12/2020,Finance,Collection Fund Revenue Accts,138A,Lancashire County Council,04/12/2020,020/002780,5250344.00,0.00, Lcc,Other Local Authorities,
Wyre Council,http://opendatacommunities.org/doc/district-council/wyre,30/12/2020,Finance,Collection Fund Revenue Accts,138A,Lancashire Fire Authority,04/12/2020,020/002781,265707.00,0.00,Other Local Authorities Fire,Other Local Authorities,
Wyre Council,http://opendatacommunities.org/doc/district-council/wyre,30/12/2020,Finance,Collection Fund Revenue Accts,138A,Lancashire County Council,04/12/2020,020/002782,218998.00,0.00,Lcc Precepts - Lcc,Other Local Authorities,
Wyre Council,http://opendatacommunities.org/doc/district-council/wyre,30/12/2020,Finance,Collection Fund Revenue Accts,138A,Lancashire Fire Authority,04/12/2020,020/002783,24464.00,0.00,Lcc Precepts - Fire,Other Local Authorities,
Wyre Council,http://opendatacommunities.org/doc/district-council/wyre,30/12/2020,People and Places,Parking Services,133F,Nsl Services Group,11/12/2020,PE131624,651.65,0.00,October Charges,Other Parking Fees And Commission,
Wyre Council,http://opendatacommunities.org/doc/district-council/wyre,30/12/2020,People and Places,Parking Services,133F,Nsl Services Group,11/12/2020,PE131623,287.99,0.00,November Charges,Other Parking Fees And Commission,
Wyre Council,http://opendatacommunities.org/doc/district-council/wyre,30/12/2020,People and Places,Parking Services,133F,Andrew Signs Limited,07/12/2020,PE131412,462.30,0.00,To Supply As Already Received Various Signs,"Paths, Roads And Car Park Mtnce Annual",
Wyre Council,http://opendatacommunities.org/doc/district-council/wyre,30/12/2020,People and Places,Parking Services,133F,Andrew Signs Limited,07/12/2020,PE131412,462.30,0.00,To Supply As Already Received Various Signs,"Paths, Roads And Car Park Mtnce Annual",
Wyre Council,http://opendatacommunities.org/doc/district-council/wyre,30/12/2020,Finance,Corporate and Democratic Core,131A,Lancashire County Council,04/12/2020,020/002775,16304.31,0.00,Lcc Co 6510027196  90066224,Pension Increase Act Payments,
Wyre Council,http://opendatacommunities.org/doc/district-council/wyre,30/12/2020,People and Places,Support Services,135B,Allstar Business Solutions Ltd,07/12/2020,PE131312,59.94,0.00,Fuel Charges,Petrol,
Wyre Council,http://opendatacommunities.org/doc/district-council/wyre,30/12/2020,People and Places,Support Services,135B,Allstar Business Solutions Ltd,07/12/2020,PE131312,68.54,0.00,Fuel Charges,Petrol,
Wyre Council,http://opendatacommunities.org/doc/district-council/wyre,30/12/2020,People and Places,Support Services,135B,Allstar Business Solutions Ltd,07/12/2020,PE131312,81.10,0.00,Fuel Charges,Petrol,
Wyre Council,http://opendatacommunities.org/doc/district-council/wyre,30/12/2020,People and Places,Support Services,135B,Allstar Business Solutions Ltd,07/12/2020,PE131312,71.20,0.00,Fuel Charges,Petrol,
Wyre Council,http://opendatacommunities.org/doc/district-council/wyre,30/12/2020,People and Places,Support Services,135B,Allstar Business Solutions Ltd,21/12/2020,PE131593,111.50,0.00,Products And Charges,Petrol,
Wyre Council,http://opendatacommunities.org/doc/district-council/wyre,30/12/2020,People and Places,Support Services,135B,Allstar Business Solutions Ltd,21/12/2020,PE131593,40.45,0.00,Products And Charges,Petrol,
Wyre Council,http://opendatacommunities.org/doc/district-council/wyre,30/12/2020,People and Places,Support Services,135B,Allstar Business Solutions Ltd,21/12/2020,PE131593,66.41,0.00,Products And Charges,Petrol,
Wyre Council,http://opendatacommunities.org/doc/district-council/wyre,30/12/2020,People and Places,Support Services,135B,Allstar Business Solutions Ltd,22/12/2020,PE131818,38.32,0.00,Fuel Charges,Petrol,
Wyre Council,http://opendatacommunities.org/doc/district-council/wyre,30/12/2020,People and Places,Support Services,135B,Allstar Business Solutions Ltd,22/12/2020,PE131818,42.88,0.00,Fuel Charges,Petrol,
Wyre Council,http://opendatacommunities.org/doc/district-council/wyre,30/12/2020,People and Places,Support Services,135B,Allstar Business Solutions Ltd,22/12/2020,PE131818,58.76,0.00,Fuel Charges,Petrol,
Wyre Council,http://opendatacommunities.org/doc/district-council/wyre,30/12/2020,People and Places,Support Services,135B,Allstar Business Solutions Ltd,22/12/2020,PE131818,38.23,0.00,Fuel Charges,Petrol,
Wyre Council,http://opendatacommunities.org/doc/district-council/wyre,30/12/2020,People and Places,"Cultural, Environ and Planning",137B,Builders Supplies (West Coast) Ltd,21/12/2020,PE131625,403.50,0.00,Tools Bits And Drill,"Plant, Equipment And Furniture",
Wyre Council,http://opendatacommunities.org/doc/district-council/wyre,30/12/2020,Resources,Non Service Related Exp,137F,The Networking People (Tnp) Ltd,15/12/2020,RS131697,1300.00,0.00,Tnp Engineering,"Plant, Equipment And Furniture",
Wyre Council,http://opendatacommunities.org/doc/district-council/wyre,30/12/2020,People and Places,Environmental Services,132B,The Columbaria Company,16/12/2020,PE131726,66.00,0.00,Redact,Plaque Inscriptions And Furniture,
Wyre Council,http://opendatacommunities.org/doc/district-council/wyre,30/12/2020,People and Places,Environmental Services,132B,The Columbaria Company,10/12/2020,PE131617,91.00,0.00,Redact,Plaque Inscriptions And Furniture,
Wyre Council,http://opendatacommunities.org/doc/district-council/wyre,30/12/2020,People and Places,Environmental Services,132B,The Columbaria Company,14/12/2020,PE131596,94.00,0.00,Redact,Plaque Inscriptions And Furniture,
Wyre Council,http://opendatacommunities.org/doc/district-council/wyre,30/12/2020,People and Places,Environmental Services,132B,The Columbaria Company,14/12/2020,PE131596,93.00,0.00,Redact,Plaque Inscriptions And Furniture,
Wyre Council,http://opendatacommunities.org/doc/district-council/wyre,30/12/2020,People and Places,Environmental Services,132B,The Columbaria Company,07/12/2020,PE131385,420.00,0.00,Redact,Plaque Inscriptions And Furniture,
Wyre Council,http://opendatacommunities.org/doc/district-council/wyre,30/12/2020,People and Places,Environmental Services,132B,The Columbaria Company,07/12/2020,PE131385,7.50,0.00,Redact,Plaque Inscriptions And Furniture,
Wyre Council,http://opendatacommunities.org/doc/district-council/wyre,30/12/2020,People and Places,Environmental Services,132B,The Columbaria Company,07/12/2020,PE131484,105.00,0.00,Redact,Plaque Inscriptions And Furniture,
Wyre Council,http://opendatacommunities.org/doc/district-council/wyre,30/12/2020,People and Places,Support Services,135B,Wicksteed Leisure Ltd,08/12/2020,PE131553,832.00,0.00,To Supply And Fit The Following Parts To The Existing Pendulum Swing At Vicarage Park Poulton Le Fylde Fy6 7Be5901-070 Universal Joint Assembly (4 Chains Version) C/W Fixings,Playground Equipment,
Wyre Council,http://opendatacommunities.org/doc/district-council/wyre,30/12/2020,People and Places,Support Services,135B,Wicksteed Leisure Ltd,08/12/2020,PE131553,180.00,0.00,Labour To Fit The Above,Playground Equipment,
Wyre Council,http://opendatacommunities.org/doc/district-council/wyre,30/12/2020,People and Places,Support Services,135B,The Play Inspection Company Ltd,21/12/2020,PE131819,1783.50,0.00,To Carry Out Annual Inspection And Report On 41 Sites,Playground Equipment,
Wyre Council,http://opendatacommunities.org/doc/district-council/wyre,30/12/2020,People and Places,Support Services,135B,Kompan Ltd,07/12/2020,PE131470,380.00,0.00,Ac380018-11 Time Tracker Rotator,Playground Equipment,
Wyre Council,http://opendatacommunities.org/doc/district-council/wyre,30/12/2020,People and Places,Support Services,135B,Kompan Ltd,07/12/2020,PE131470,41.80,0.00,Carriage,Playground Equipment,
Wyre Council,http://opendatacommunities.org/doc/district-council/wyre,30/12/2020,People and Places,Support Services,135B,Proludic Ltd,21/12/2020,PE131813,204.29,0.00,Delivery,Playground Equipment,
Wyre Council,http://opendatacommunities.org/doc/district-council/wyre,30/12/2020,People and Places,Support Services,135B,Proludic Ltd,21/12/2020,PE131813,826.06,0.00,E2813O Circle Panel,Playground Equipment,
Wyre Council,http://opendatacommunities.org/doc/district-council/wyre,30/12/2020,People and Places,Support Services,135B,Proludic Ltd,21/12/2020,PE131813,353.40,0.00,E2814O Half Circle Panel,Playground Equipment,
Wyre Council,http://opendatacommunities.org/doc/district-council/wyre,30/12/2020,People and Places,Support Services,135B,Proludic Ltd,21/12/2020,PE131813,55.84,0.00,Li27129 Fixing Tunnel Wall,Playground Equipment,
Wyre Council,http://opendatacommunities.org/doc/district-council/wyre,30/12/2020,People and Places,Support Services,135B,Proludic Ltd,21/12/2020,PE131813,312.57,0.00,F2816 Arch Panel,Playground Equipment,
Wyre Council,http://opendatacommunities.org/doc/district-council/wyre,30/12/2020,People and Places,Support Services,135B,Proludic Ltd,21/12/2020,PE131813,402.45,0.00,F2815 Panel,Playground Equipment,
Wyre Council,http://opendatacommunities.org/doc/district-council/wyre,30/12/2020,People and Places,Support Services,135B,Proludic Ltd,21/12/2020,PE131813,64.54,0.00,Li2597 Horizontal Bar And Mounting Plate,Playground Equipment,
Wyre Council,http://opendatacommunities.org/doc/district-council/wyre,30/12/2020,Resources,Support Services,135B,Blackpool And Fylde College,07/12/2020,RS131482,1265.00,0.00,Cipd Level 5 Diplomaolivia Cordingley,Post Entry/Professional Training,
Wyre Council,http://opendatacommunities.org/doc/district-council/wyre,30/12/2020,Resources,Corporate and Democratic Core,131A,South West Councils,09/12/2020,RS131561,1260.00,0.00,Adso Diploma - Emma Keany,Post Entry/Professional Training,
Wyre Council,http://opendatacommunities.org/doc/district-council/wyre,30/12/2020,Resources,Central Services to the Public,131C,Critiqom Ltd,14/12/2020,RS131648,257.40,0.00,Daily Bills,Postage,
Wyre Council,http://opendatacommunities.org/doc/district-council/wyre,30/12/2020,Resources,Central Services to the Public,131C,Critiqom Ltd,14/12/2020,RS131649,1141.07,0.00,Daily Bills,Postage,
Wyre Council,http://opendatacommunities.org/doc/district-council/wyre,30/12/2020,Resources,Central Services to the Public,131C,Critiqom Ltd,14/12/2020,RS131648,217.60,0.00,Iq Post Electoral,Postage,
Wyre Council,http://opendatacommunities.org/doc/district-council/wyre,30/12/2020,Resources,Housing General Fund,134A,Critiqom Ltd,14/12/2020,RS131648,39.64,0.00,Benefit Notification,Postage,
Wyre Council,http://opendatacommunities.org/doc/district-council/wyre,30/12/2020,Resources,Housing General Fund,134A,Critiqom Ltd,14/12/2020,RS131649,157.90,0.00,Benefit Notification,Postage,
Wyre Council,http://opendatacommunities.org/doc/district-council/wyre,30/12/2020,Resources,Support Services,135B,Critiqom Ltd,14/12/2020,RS131648,48.67,0.00,Iq Post Off Serv Admin,Postage,
Wyre Council,http://opendatacommunities.org/doc/district-council/wyre,30/12/2020,Resources,Support Services,135B,Critiqom Ltd,14/12/2020,RS131648,13.04,0.00,Iq Post Recovery,Postage,
Wyre Council,http://opendatacommunities.org/doc/district-council/wyre,30/12/2020,Resources,Support Services,135B,Critiqom Ltd,14/12/2020,RS131648,543.46,0.00,Iq Post Cc,Postage,
Wyre Council,http://opendatacommunities.org/doc/district-council/wyre,30/12/2020,Resources,Support Services,135B,Critiqom Ltd,14/12/2020,RS131648,252.75,0.00,Iq Post Planning,Printing,
Wyre Council,http://opendatacommunities.org/doc/district-council/wyre,30/12/2020,People and Places,Cultural and Related Services,132A,Melrose Investments Ltd,22/12/2020,PE131857,1428.25,0.00,Rent/Service Charge For The Period 01/01/21-31/03/21,Private Contractors,
Wyre Council,http://opendatacommunities.org/doc/district-council/wyre,30/12/2020,People and Places,Public Transport,133G,Wyre Marine Services,07/12/2020,PE131478,7017.09,0.00,"Fleetwood Ferry Serviceschedule Of Payments 2020-2112 Apr - 11 May       - 7,017.0912 May - 11 Jun      - 7,017.0912 Jun - 11 Jul        - 7,017.0912 Jul - 11 Aug        - 7,017.0912 Aug - 11 Sep      - 7,019.0812 Sep - 11 Oct       -",Private Contractors,
Wyre Council,http://opendatacommunities.org/doc/district-council/wyre,30/12/2020,People and Places,Parking Services,133F,Nsl Services Group,11/12/2020,PE131623,4137.89,0.00,November Charges,Private Contractors,
Wyre Council,http://opendatacommunities.org/doc/district-council/wyre,30/12/2020,People and Places,Parking Services,133F,Nsl Services Group,11/12/2020,PE131624,4230.61,0.00,October Charges,Private Contractors,
Wyre Council,http://opendatacommunities.org/doc/district-council/wyre,30/12/2020,People and Places,Support Services,135B,Landscape Engineering Ltd,07/12/2020,PE131314,8999.64,0.00,Flood Alleviation Scheme Works Farnham Way Carleton As Per Schedule Of Works (Resubmission 002) Dated 24-02-20,Private Contractors,
Wyre Council,http://opendatacommunities.org/doc/district-council/wyre,30/12/2020,People and Places,Environmental Services,132B,Floating Pontoon Solutions,07/12/2020,PE131472,687.75,0.00,1 Strim All Watercourse Banks Except West Side Of Pond Bank.687.75,Private Contractors,
Wyre Council,http://opendatacommunities.org/doc/district-council/wyre,30/12/2020,People and Places,Environmental Services,132B,Floating Pontoon Solutions,07/12/2020,PE131472,3725.00,0.00,1 Pontoon Use:Remove Bulrush Aquatic Plants Along North Section Creating A Clear Channel. Small Number Of Bulrushes To Remain For Fauna. Remove Bulrushes From Site Once They Have Been Left 48 Hours To Dry And Have Allowed Any Remaining Wildlife To Exit.,Private Contractors,
Wyre Council,http://opendatacommunities.org/doc/district-council/wyre,30/12/2020,People and Places,Environmental Services,132B,Floating Pontoon Solutions,07/12/2020,PE131476,1875.00,0.00,1 De-Silt Royles Brook Screen And Concrete Base/Apron.All Silt To Remain On Site On The Banking Where Available.Remove All Non-Biodegradable Waste From Site. As Requested By Chris Atherton,Private Contractors,
Wyre Council,http://opendatacommunities.org/doc/district-council/wyre,30/12/2020,People and Places,Environmental Services,132B,Happy Creative Limited,09/12/2020,PE131570,5000.00,0.00,Design And Delivery Of Digital Waste Campaign As Per Project Proposal / Team,Promotions - General,
Wyre Council,http://opendatacommunities.org/doc/district-council/wyre,30/12/2020,People and Places,Environmental Services,132B,Happy Creative Limited,07/12/2020,PE131406,5000.00,0.00,Design And Delivery Of Digital Waste Campaign As Per Project Proposal / Team,Promotions - General,
Wyre Council,http://opendatacommunities.org/doc/district-council/wyre,30/12/2020,People and Places,Planning and Development Servs,132C,Yandell Publishing Ltd,21/12/2020,PE131838,270.00,0.00,Whos Who Guide 2020 Quarter Page,Promotions - General,
Wyre Council,http://opendatacommunities.org/doc/district-council/wyre,30/12/2020,People and Places,Planning and Development Servs,132C,Yandell Publishing Ltd,11/12/2020,PE131663,350.00,0.00,Group Leisure & Travel Magazinemarch 2020 Quarter Page Rop Vertical  350.00Featured In: Shopping Tripsaugust 2020 Quarter Page Rop Vertical  350.00Featured In: The Christmas Guidedecember 2020 Quarter Page Rop Vertical  350.00Featured In: S,Promotions - General,
Wyre Council,http://opendatacommunities.org/doc/district-council/wyre,30/12/2020,People and Places,Environmental Services,132B,Veolia Es (Uk) Ltd,21/12/2020,PE131825,-2650.00,0.00,Leaflet Priniting Recharge,Promotions - General,
Wyre Council,http://opendatacommunities.org/doc/district-council/wyre,30/12/2020,People and Places,Environmental Services,132B,Veolia Es (Uk) Ltd,21/12/2020,PE131825,723.46,0.00,Additional Leaflets,Promotions - General,
Wyre Council,http://opendatacommunities.org/doc/district-council/wyre,30/12/2020,Resources,Environmental Services,132B,Visual Print And Design Ltd,07/12/2020,RS131485,2650.00,0.00,"Bin Leaflet - A5, 8Pp Concertina Fold",Promotions - General,
Wyre Council,http://opendatacommunities.org/doc/district-council/wyre,30/12/2020,People and Places,Cultural and Related Services,132A,Ah Educate Ltd T/A The Property Film Company,11/12/2020,PE131667,750.00,0.00,Film Work For Mount Pavilion 50% Deposit Payment,Promotions - General,
Wyre Council,http://opendatacommunities.org/doc/district-council/wyre,30/12/2020,People and Places,Cultural and Related Services,132A,Builders Supplies (West Coast) Ltd,21/12/2020,PE131407,68.99,0.00,1 X Pair Of Safety Boots,Protective Clothing,
Wyre Council,http://opendatacommunities.org/doc/district-council/wyre,30/12/2020,People and Places,Cultural and Related Services,132A,Builders Supplies (West Coast) Ltd,21/12/2020,PE131407,68.99,0.00,1 X Safety Boots,Protective Clothing,
Wyre Council,http://opendatacommunities.org/doc/district-council/wyre,30/12/2020,People and Places,Support Services,135B,Key Engineering & Hygiene Supplies Ltd,10/12/2020,PE131575,38.29,0.00,"2 X Golel170Ddr/09, Goliath Groundsmasters El170Ddr Chukka Boot, Size 9 @ 38.29 Each",Protective Clothing,
Wyre Council,http://opendatacommunities.org/doc/district-council/wyre,30/12/2020,People and Places,Support Services,135B,Key Engineering & Hygiene Supplies Ltd,10/12/2020,PE131575,47.76,0.00,"1 X Golsdr10Csi/07 Goliath Groundmaser Sdr10Csichukka Boot In Size 7 @ 47.76 Each  To Be Delviered To Copse Road Depot, Copse Road, Fleetwood, Fy7 6Rp.",Protective Clothing,
Wyre Council,http://opendatacommunities.org/doc/district-council/wyre,30/12/2020,Resources,Support Services,135B,Key Engineering & Hygiene Supplies Ltd,10/12/2020,RS131577,20.34,0.00,Fruit Of The Loom  Pocket Polo Shirt Navy With Logo -- Medium,Protective Clothing,
Wyre Council,http://opendatacommunities.org/doc/district-council/wyre,30/12/2020,Resources,Support Services,135B,Key Engineering & Hygiene Supplies Ltd,10/12/2020,RS131577,20.34,0.00,Fruit Of The Loom Pocket Polo Shirt Navy With Logo -- Large,Protective Clothing,
Wyre Council,http://opendatacommunities.org/doc/district-council/wyre,30/12/2020,Resources,Support Services,135B,Key Engineering & Hygiene Supplies Ltd,10/12/2020,RS131577,20.34,0.00,Fruit Of The Loom Pocket Polo Shirt Navy With Logo --  Extra Large,Protective Clothing,
Wyre Council,http://opendatacommunities.org/doc/district-council/wyre,30/12/2020,Resources,Support Services,135B,Key Engineering & Hygiene Supplies Ltd,10/12/2020,RS131577,18.00,0.00,1 Embroidered Logo For Wyre Council,Protective Clothing,
Wyre Council,http://opendatacommunities.org/doc/district-council/wyre,30/12/2020,Resources,Support Services,135B,Key Engineering & Hygiene Supplies Ltd,10/12/2020,RS131577,23.10,0.00,Black Leather Safety Trainer Size 10,Protective Clothing,
Wyre Council,http://opendatacommunities.org/doc/district-council/wyre,30/12/2020,Resources,Support Services,135B,Key Engineering & Hygiene Supplies Ltd,10/12/2020,RS131577,23.10,0.00,Black Leather Safety Trainer Size 8,Protective Clothing,
Wyre Council,http://opendatacommunities.org/doc/district-council/wyre,30/12/2020,People and Places,Support Services,135B,Key Engineering & Hygiene Supplies Ltd,10/12/2020,PE131575,13.16,0.00,"1 X Protomaster Full Safety Wellington In Black, Size 9 @ Estimated Cost Of 15",Protective Clothing,
Wyre Council,http://opendatacommunities.org/doc/district-council/wyre,30/12/2020,People and Places,Support Services,135B,Key Engineering & Hygiene Supplies Ltd,10/12/2020,PE131575,61.86,0.00,"Supply And Deliver The Following Black Poloshirts With Wyre Logo To The Front @ 6.06 Each   3 X 3Xl 7 X Xl  Delivery To Copse Road Depot, Copse Road, Fleetwood, Fy7 6Rp.",Protective Clothing,
Wyre Council,http://opendatacommunities.org/doc/district-council/wyre,30/12/2020,People and Places,Environmental Services,132B,Key Engineering & Hygiene Supplies Ltd,10/12/2020,PE131575,17.56,0.00,Supply And Deliver 1 X Cddsts/08 - Black Smooth Leather Tie Shoe @ 17.56,Protective Clothing,
Wyre Council,http://opendatacommunities.org/doc/district-council/wyre,30/12/2020,People and Places,Environmental Services,132B,Key Engineering & Hygiene Supplies Ltd,10/12/2020,PE131575,13.43,0.00,"1 X Regatta Trousers, Code Trj500, Black, Size 28`` Reg @ 13.43",Protective Clothing,
Wyre Council,http://opendatacommunities.org/doc/district-council/wyre,30/12/2020,People and Places,Environmental Services,132B,Key Engineering & Hygiene Supplies Ltd,10/12/2020,PE131575,19.95,0.00,"1 X Sealtex Ocean Jacket In Navy, Code S250Narxs In Size Xs, @ 19.95",Protective Clothing,
Wyre Council,http://opendatacommunities.org/doc/district-council/wyre,30/12/2020,People and Places,Environmental Services,132B,Key Engineering & Hygiene Supplies Ltd,10/12/2020,PE131575,13.48,0.00,"1 X Premium Fleece Jacket In Black, Code Uc601, Size Xs With Wyre Emb Logo To Front @ 12.29",Protective Clothing,
Wyre Council,http://opendatacommunities.org/doc/district-council/wyre,30/12/2020,People and Places,Environmental Services,132B,Key Engineering & Hygiene Supplies Ltd,10/12/2020,PE131575,11.69,0.00,"1 X Sealtex Ocean Waterproof Trousers, Navy, Code S251Nas, Size Small",Protective Clothing,
Wyre Council,http://opendatacommunities.org/doc/district-council/wyre,30/12/2020,People and Places,Central Services to the Public,131C,Key Engineering & Hygiene Supplies Ltd,10/12/2020,PE131575,19.53,0.00,"Urgent Supply Of The Following:-  1 X S493Yerm Sealtex Ultra Trousers, Size Medium, Yellow @ 19.53",Protective Clothing,
Wyre Council,http://opendatacommunities.org/doc/district-council/wyre,30/12/2020,People and Places,Central Services to the Public,131C,Key Engineering & Hygiene Supplies Ltd,10/12/2020,PE131575,19.53,0.00,"1 X S493Yerm Sealtex Ultra Trousers, Size Large, Yellow @ 19.53",Protective Clothing,
Wyre Council,http://opendatacommunities.org/doc/district-council/wyre,30/12/2020,People and Places,Central Services to the Public,131C,Key Engineering & Hygiene Supplies Ltd,10/12/2020,PE131575,29.75,0.00,"1 X S491Yerm Sealtex Ultra Jacket, Size Medium In Yellow @ 29.75 Each",Protective Clothing,
Wyre Council,http://opendatacommunities.org/doc/district-council/wyre,30/12/2020,People and Places,Central Services to the Public,131C,Key Engineering & Hygiene Supplies Ltd,10/12/2020,PE131575,29.75,0.00,"1 X S491Yerm Sealtex Ultra Jacket, Size Large In Yellow @ 29.75 Each",Protective Clothing,
Wyre Council,http://opendatacommunities.org/doc/district-council/wyre,30/12/2020,People and Places,Environmental Services,132B,Key Engineering & Hygiene Supplies Ltd,10/12/2020,PE131575,19.85,0.00,"1 X Hi Vis Hoodie In Yellow, Code B304, In Size 3Xl, With Wyre Emb Logo To Front @ 19.85   To Be Delivered To Copse Road Depot, Copse Road, Fleetwood, Fy7 6Rp",Protective Clothing,
Wyre Council,http://opendatacommunities.org/doc/district-council/wyre,30/12/2020,People and Places,Environmental Services,132B,F M Waste Ltd,21/12/2020,PE131799,160.00,0.00,Provision Of Skips Copse Road,"Provision Of Bins, Boxes And Sacks",
Wyre Council,http://opendatacommunities.org/doc/district-council/wyre,30/12/2020,People and Places,Environmental Services,132B,Key Engineering & Hygiene Supplies Ltd,10/12/2020,PE131575,714.00,0.00,"Supply And Deliver 50 Boxes Of Med Duty Blue Bags 18/29, 39, 90 Litre Per 200, Code Bl2939 @ 14.28 Per Box  Delivery To Copse Road Depot, Copse Road, Fleetwood, Fy7 6Rp","Provision Of Bins, Boxes And Sacks",
Wyre Council,http://opendatacommunities.org/doc/district-council/wyre,30/12/2020,People and Places,Environmental Services,132B,A & C Weber Uk Ltd,21/12/2020,PE131855,12540.00,0.00,240Ltr Grey Carcasses @ 16.50 Per Unitprices As Per Espo Contract Schedule 860Addanticipated Delivery W/C 7 December 2020Email Address:Sales@W-Weber.Com & D.Elliott@W-Weber.Com & T.Anklam@W-Weber.Comto Be Delivered To:Copse Road Depot,"Provision Of Bins, Boxes And Sacks",
Wyre Council,http://opendatacommunities.org/doc/district-council/wyre,30/12/2020,People and Places,Environmental Services,132B,Veolia Es (Uk) Ltd,21/12/2020,PE131825,4113.00,0.00,Provision Of Bins,"Provision Of Bins, Boxes And Sacks",
Wyre Council,http://opendatacommunities.org/doc/district-council/wyre,30/12/2020,People and Places,Cultural and Related Services,132A,Nick Harrison,21/12/2020,PE131858,576.00,0.00,Photography For A Day To Take Images Of Completion Of Restoration,Public Relations,
Wyre Council,http://opendatacommunities.org/doc/district-council/wyre,30/12/2020,People and Places,Central Services to the Public,131C,Builders Supplies (West Coast) Ltd,21/12/2020,PE131407,167.94,0.00,Supply Of 6 (8X4) Wbp � Inch Plywood Sheets132+ Vatcollection,Purchase Of Tools Or Equipment,
Wyre Council,http://opendatacommunities.org/doc/district-council/wyre,30/12/2020,Resources,Housing General Fund,134A,Builders Supplies (West Coast) Ltd,17/12/2020,RS131790,46.49,0.00,Payment Of Invoice 0001/00281545,Purchase Of Tools Or Equipment,
Wyre Council,http://opendatacommunities.org/doc/district-council/wyre,30/12/2020,Resources,Housing General Fund,134A,Builders Supplies (West Coast) Ltd,17/12/2020,RS131789,39.38,0.00,Payment Of Invoice 0002/00287580,Purchase Of Tools Or Equipment,
Wyre Council,http://opendatacommunities.org/doc/district-council/wyre,30/12/2020,People and Places,Support Services,135B,Gibson Garden Machinery Ltd,21/12/2020,PE131848,2750.00,0.00,New Other Machinery Rf710 Pro Hydro Mower Serial Number 3800119,Purchase Of Tools Or Equipment,
Wyre Council,http://opendatacommunities.org/doc/district-council/wyre,30/12/2020,People and Places,Environmental Services,132B,Killgerm Chemicals Ltd,21/12/2020,PE131736,31.35,0.00,Clu-Liter Led Torch - Clu13,Purchase Of Tools Or Equipment,
Wyre Council,http://opendatacommunities.org/doc/district-council/wyre,30/12/2020,People and Places,Environmental Services,132B,Killgerm Chemicals Ltd,21/12/2020,PE131736,7.84,0.00,Clu Torch Car Charger - Cluch16A,Purchase Of Tools Or Equipment,
Wyre Council,http://opendatacommunities.org/doc/district-council/wyre,30/12/2020,People and Places,Support Services,135B,Lyreco Uk Ltd,11/12/2020,PE131557,17.09,0.00,Energizer Industrial Alkaline Batteries 6Lr61/9V - Pack Of 12,Purchase Of Tools Or Equipment,
Wyre Council,http://opendatacommunities.org/doc/district-council/wyre,30/12/2020,People and Places,Support Services,135B,Lyreco Uk Ltd,11/12/2020,PE131557,28.72,0.00,Pk20 Energizer Alkaline Advanced D,Purchase Of Tools Or Equipment,
Wyre Council,http://opendatacommunities.org/doc/district-council/wyre,30/12/2020,Resources,Support Services,135B,Lyreco Uk Ltd,09/12/2020,RS131566,-21.40,0.00,Adhesive Labels 50Mm Dia - Company Seal - Red - Pack Of 8,Purchase Of Tools Or Equipment,
Wyre Council,http://opendatacommunities.org/doc/district-council/wyre,30/12/2020,Resources,Support Services,135B,Lyreco Uk Ltd,09/12/2020,RS131566,21.40,0.00,Adhesive Labels 50Mm Dia - Company Seal - Red - Pack Of 8,Purchase Of Tools Or Equipment,
Wyre Council,http://opendatacommunities.org/doc/district-council/wyre,30/12/2020,Resources,Support Services,135B,Lyreco Uk Ltd,16/12/2020,RS131568,21.40,0.00,Adhesive Labels 50Mm Dia - Company Seal - Red - Pack Of 8,Purchase Of Tools Or Equipment,
Wyre Council,http://opendatacommunities.org/doc/district-council/wyre,30/12/2020,Resources,Support Services,135B,Lyreco Uk Ltd,10/12/2020,RS131562,26.46,0.00,Energizer Industrial Alkaline Batteries Lr14/C - Pack Of 12,Purchase Of Tools Or Equipment,
Wyre Council,http://opendatacommunities.org/doc/district-council/wyre,30/12/2020,Resources,Support Services,135B,Orange Pcs Ltd,21/12/2020,RS131691,18.00,0.00,Monthly Charges,Purchase Of Tools Or Equipment,
Wyre Council,http://opendatacommunities.org/doc/district-council/wyre,30/12/2020,Resources,Support Services,135B,Orange Pcs Ltd,17/12/2020,RS131323,18.33,0.00,Monthly Charges,Purchase Of Tools Or Equipment,
Wyre Council,http://opendatacommunities.org/doc/district-council/wyre,30/12/2020,Resources,Support Services,135B,Orange Pcs Ltd,21/12/2020,RS131691,10.00,0.00,Monthly Charges,Purchase Of Tools Or Equipment,
Wyre Council,http://opendatacommunities.org/doc/district-council/wyre,30/12/2020,People and Places,Cultural and Related Services,132A,Lancashire Event Hire Ltd,07/12/2020,PE131461,1569.50,0.00,Chairs Purchased Invoice 2190Dated 21/09/2020,Purchase Of Tools Or Equipment,
Wyre Council,http://opendatacommunities.org/doc/district-council/wyre,30/12/2020,People and Places,Planning and Development Servs,132C,Realcare Service Ltd,16/12/2020,PE131742,550.00,0.00,Stenhoj New Type Bluthtooth Handlamp 2016 Version,Purchase Of Tools Or Equipment,
Wyre Council,http://opendatacommunities.org/doc/district-council/wyre,30/12/2020,People and Places,Planning and Development Servs,132C,Realcare Service Ltd,16/12/2020,PE131742,10.00,0.00,Carriage,Purchase Of Tools Or Equipment,
Wyre Council,http://opendatacommunities.org/doc/district-council/wyre,30/12/2020,People and Places,Support Services,135B,Andrew Curran Ltd,09/12/2020,PE131545,1080.00,0.00,Professional Mig Welder,Purchase Of Tools Or Equipment,
Wyre Council,http://opendatacommunities.org/doc/district-council/wyre,30/12/2020,People and Places,Cultural and Related Services,132A,Disability First Cio,14/12/2020,PE131537,2156.00,0.00,Refund Of Ticket Sales,Refund Of Ticket Sales To Ext Promoters,
Wyre Council,http://opendatacommunities.org/doc/district-council/wyre,30/12/2020,People and Places,Environmental Services,132B,Veolia Es (Uk) Ltd,21/12/2020,PE131825,2260.38,0.00,Pension Pass Through Nov 20,Refuse Collection Contract,
Wyre Council,http://opendatacommunities.org/doc/district-council/wyre,30/12/2020,People and Places,Environmental Services,132B,Veolia Es (Uk) Ltd,21/12/2020,PE131825,160168.14,0.00,Domestic Waste Management Collection Contract 2020/21,Refuse Collection Contract,
Wyre Council,http://opendatacommunities.org/doc/district-council/wyre,30/12/2020,People and Places,Cultural and Related Services,132A,Allcool (Nw) Ltd,07/12/2020,PE131330,2136.00,0.00,Works Completed,Responsive Building Maintenance,
Wyre Council,http://opendatacommunities.org/doc/district-council/wyre,30/12/2020,People and Places,Cultural and Related Services,132A,Allcool (Nw) Ltd,07/12/2020,PE130963,217.50,0.00,Works Completed,Responsive Building Maintenance,
Wyre Council,http://opendatacommunities.org/doc/district-council/wyre,30/12/2020,People and Places,Support Services,135B,Eas Electrical Mechanical,17/12/2020,PE131764,182.81,0.00,Work Carried Out At The Civic Centre,Responsive Building Maintenance,
Wyre Council,http://opendatacommunities.org/doc/district-council/wyre,30/12/2020,People and Places,Planning and Development Servs,132C,Eas Electrical Mechanical,17/12/2020,PE131765,45.00,0.00,Work Carried Out At Fleetwood Market,Responsive Building Maintenance,
Wyre Council,http://opendatacommunities.org/doc/district-council/wyre,30/12/2020,Resources,Cultural and Related Services,132A,Eas Electrical Mechanical,07/12/2020,RS130444,210.05,0.00,Works Completed,Responsive Building Maintenance,
Wyre Council,http://opendatacommunities.org/doc/district-council/wyre,30/12/2020,People and Places,Planning and Development Servs,132C,Schneider Electric Ltd,14/12/2020,PE131659,759.47,0.00,Works To Fleetwood Market,Responsive Building Maintenance,
Wyre Council,http://opendatacommunities.org/doc/district-council/wyre,30/12/2020,People and Places,Planning and Development Servs,132C,Schneider Electric Ltd,14/12/2020,PE131658,825.00,0.00,Works To Fleetwood Market,Responsive Building Maintenance,
Wyre Council,http://opendatacommunities.org/doc/district-council/wyre,30/12/2020,People and Places,Planning and Development Servs,132C,Opal Design Ltd,07/12/2020,PE131372,1442.79,0.00,Works Completed,Responsive Building Maintenance,
Wyre Council,http://opendatacommunities.org/doc/district-council/wyre,30/12/2020,People and Places,Planning and Development Servs,132C,Opal Design Ltd,07/12/2020,PE131373,1457.00,0.00,Works Completed,Responsive Building Maintenance,
Wyre Council,http://opendatacommunities.org/doc/district-council/wyre,30/12/2020,People and Places,Planning and Development Servs,132C,Opal Design Ltd,21/12/2020,PE131773,81.00,0.00,Works At Fleetwood Market,Responsive Building Maintenance,
Wyre Council,http://opendatacommunities.org/doc/district-council/wyre,30/12/2020,People and Places,Planning and Development Servs,132C,Opal Design Ltd,21/12/2020,PE131774,73.64,0.00,Works At Fleetwood Market,Responsive Building Maintenance,
Wyre Council,http://opendatacommunities.org/doc/district-council/wyre,30/12/2020,People and Places,Planning and Development Servs,132C,Opal Design Ltd,21/12/2020,PE131771,64.67,0.00,Replace Taps At Fleetwood Market,Responsive Building Maintenance,
Wyre Council,http://opendatacommunities.org/doc/district-council/wyre,30/12/2020,People and Places,Environmental Services,132B,Opal Design Ltd,22/12/2020,PE131862,41.00,0.00,Work Carried Out At Beach Rd Cemetery,Responsive Building Maintenance,
Wyre Council,http://opendatacommunities.org/doc/district-council/wyre,30/12/2020,People and Places,Planning and Development Servs,132C,Opal Design Ltd,22/12/2020,PE131863,68.34,0.00,Work Carried Out At Copse Road,Responsive Building Maintenance,
Wyre Council,http://opendatacommunities.org/doc/district-council/wyre,30/12/2020,People and Places,Support Services,135B,Opal Design Ltd,22/12/2020,PE131864,69.64,0.00,Work Carried Out At Civic Bolier Room,Responsive Building Maintenance,
Wyre Council,http://opendatacommunities.org/doc/district-council/wyre,30/12/2020,People and Places,Support Services,135B,Opal Design Ltd,22/12/2020,PE131866,129.64,0.00,Civic Centre Boiler Room,Responsive Building Maintenance,
Wyre Council,http://opendatacommunities.org/doc/district-council/wyre,30/12/2020,People and Places,Support Services,135B,Opal Design Ltd,22/12/2020,PE131865,41.00,0.00,Work Carried Out At Boiler Room,Responsive Building Maintenance,
Wyre Council,http://opendatacommunities.org/doc/district-council/wyre,30/12/2020,People and Places,Planning and Development Servs,132C,Crystal Clear,09/12/2020,PE131275,4696.00,0.00,Work Carried Out At 10 Victoria Square,Responsive Building Maintenance,
Wyre Council,http://opendatacommunities.org/doc/district-council/wyre,30/12/2020,People and Places,Planning and Development Servs,132C,Garry Carr Building Services Ltd,22/12/2020,PE131815,40.00,0.00,Work Carried Out At Unit 10 Butts Close,Responsive Building Maintenance,
Wyre Council,http://opendatacommunities.org/doc/district-council/wyre,30/12/2020,People and Places,Planning and Development Servs,132C,Garry Carr Building Services Ltd,22/12/2020,PE131810,79.00,0.00,Work Carried Out At Fleetwood Market,Responsive Building Maintenance,
Wyre Council,http://opendatacommunities.org/doc/district-council/wyre,30/12/2020,People and Places,Environmental Services,132B,Garry Carr Building Services Ltd,22/12/2020,PE131811,126.00,0.00,Work Carried Out At Preesall Cemetery,Responsive Building Maintenance,
Wyre Council,http://opendatacommunities.org/doc/district-council/wyre,30/12/2020,People and Places,Support Services,135B,Garry Carr Building Services Ltd,14/12/2020,PE131630,107.00,0.00,Supply And Fit Digi Lock,Responsive Building Maintenance,
Wyre Council,http://opendatacommunities.org/doc/district-council/wyre,30/12/2020,People and Places,Support Services,135B,Garry Carr Building Services Ltd,14/12/2020,PE131629,47.00,0.00,Replace Drop Bolt To Door,Responsive Building Maintenance,
Wyre Council,http://opendatacommunities.org/doc/district-council/wyre,30/12/2020,People and Places,Cultural and Related Services,132A,Garry Carr Building Services Ltd,14/12/2020,PE131150,1010.00,0.00,Works To Marsh Mill,Responsive Building Maintenance,
Wyre Council,http://opendatacommunities.org/doc/district-council/wyre,30/12/2020,People and Places,Cultural and Related Services,132A,Garry Carr Building Services Ltd,14/12/2020,PE131628,66.00,0.00,Fit Brush Strips To Fire Doors,Responsive Building Maintenance,
Wyre Council,http://opendatacommunities.org/doc/district-council/wyre,30/12/2020,People and Places,Cultural and Related Services,132A,Garry Carr Building Services Ltd,14/12/2020,PE131386,6230.00,0.00,Ferry Shop Repairs,Responsive Building Maintenance,
Wyre Council,http://opendatacommunities.org/doc/district-council/wyre,30/12/2020,People and Places,Cultural and Related Services,132A,Garry Carr Building Services Ltd,14/12/2020,PE130309,174.00,0.00,Works To Rangers Office At Stannah,Responsive Building Maintenance,
Wyre Council,http://opendatacommunities.org/doc/district-council/wyre,30/12/2020,People and Places,Cultural and Related Services,132A,Garry Carr Building Services Ltd,07/12/2020,PE130717,1486.00,0.00,Wyre Bar Floor Repairs,Responsive Building Maintenance,
Wyre Council,http://opendatacommunities.org/doc/district-council/wyre,30/12/2020,People and Places,Cultural and Related Services,132A,Garry Carr Building Services Ltd,07/12/2020,PE131247,1450.00,0.00,Phase 2 Beach Bungalows,Responsive Building Maintenance,
Wyre Council,http://opendatacommunities.org/doc/district-council/wyre,30/12/2020,People and Places,Cultural and Related Services,132A,Garry Carr Building Services Ltd,07/12/2020,PE130719,466.00,0.00,Fix Leak To Studio 1,Responsive Building Maintenance,
Wyre Council,http://opendatacommunities.org/doc/district-council/wyre,30/12/2020,People and Places,Cultural and Related Services,132A,Garry Carr Building Services Ltd,07/12/2020,PE131286,162.00,0.00,Work Carried Out At Marsh Mill,Responsive Building Maintenance,
Wyre Council,http://opendatacommunities.org/doc/district-council/wyre,30/12/2020,People and Places,Cultural and Related Services,132A,Garry Carr Building Services Ltd,07/12/2020,PE131283,63.00,0.00,Work Carried Out At Public Clock Shelter,Responsive Building Maintenance,
Wyre Council,http://opendatacommunities.org/doc/district-council/wyre,30/12/2020,Resources,Housing General Fund,134A,Mr M Gregory,16/12/2020,RS131740,830.00,0.00,Redact,Rough Sleeper Project/Nsno,
Wyre Council,http://opendatacommunities.org/doc/district-council/wyre,30/12/2020,Resources,Housing General Fund,134A,Cef Ltd,08/12/2020,RS131419,3078.00,0.00,Redact,Rough Sleeper Project/Nsno,
Wyre Council,http://opendatacommunities.org/doc/district-council/wyre,30/12/2020,Resources,Housing General Fund,134A,Carter Property Ltd,14/12/2020,RS131680,3900.00,0.00,Redact,Rough Sleeper Project/Nsno,
Wyre Council,http://opendatacommunities.org/doc/district-council/wyre,30/12/2020,Resources,Housing General Fund,134A,Carter Property Ltd,15/12/2020,RS131705,196.00,0.00,Redact,Rough Sleeper Project/Nsno,
Wyre Council,http://opendatacommunities.org/doc/district-council/wyre,30/12/2020,Resources,Housing General Fund,134A,Quays Housing,21/12/2020,RS131839,349.42,0.00,Redact,Rough Sleeper Project/Nsno,
Wyre Council,http://opendatacommunities.org/doc/district-council/wyre,30/12/2020,Resources,Central Services to the Public,131C,Quays Housing,15/12/2020,RS131695,168.74,0.00,Redact,Rough Sleeper Project/Nsno,
Wyre Council,http://opendatacommunities.org/doc/district-council/wyre,30/12/2020,Resources,Central Services to the Public,131C,Quays Housing,15/12/2020,RS131696,337.48,0.00,Redact,Rough Sleeper Project/Nsno,
Wyre Council,http://opendatacommunities.org/doc/district-council/wyre,30/12/2020,Resources,Housing General Fund,134A,Quays Housing,15/12/2020,RS131718,338.14,0.00,Redact,Rough Sleeper Project/Nsno,
Wyre Council,http://opendatacommunities.org/doc/district-council/wyre,30/12/2020,Resources,Housing General Fund,134A,Quays Housing,07/12/2020,RS131491,350.16,0.00,Redact,Rough Sleeper Project/Nsno,
Wyre Council,http://opendatacommunities.org/doc/district-council/wyre,30/12/2020,Resources,Housing General Fund,134A,Quays Housing,07/12/2020,RS131492,338.14,0.00,Redact,Rough Sleeper Project/Nsno,
Wyre Council,http://opendatacommunities.org/doc/district-council/wyre,30/12/2020,People and Places,Support Services,135B,Landscape Engineering Ltd,07/12/2020,PE131314,4140.19,0.00,Additional Works Farnham Way Flood Alleviation,Routine Maintenance,
Wyre Council,http://opendatacommunities.org/doc/district-council/wyre,30/12/2020,People and Places,Support Services,135B,Shard Surfacing Ltd,07/12/2020,PE131320,3245.58,0.00,"To Carry Out Footpath Repair Works To Fleetwood Pier Footpath, As Per Quotation 2020.58",Routine Maintenance,
Wyre Council,http://opendatacommunities.org/doc/district-council/wyre,30/12/2020,People and Places,Support Services,135B,Shard Surfacing Ltd,07/12/2020,PE131320,915.42,0.00,"To Carry Out Footpath Repair Works To Fleetwood Pier Footpath, As Per Quotation 2020.58",Routine Maintenance,
Wyre Council,http://opendatacommunities.org/doc/district-council/wyre,30/12/2020,People and Places,Highways,133B,Glasdon Uk Ltd,07/12/2020,PE131475,55.73,0.00,"Supply One Replacement Memorial Plaque.Plaque Inscription To Read In Memory Of Our Mum Mary Whelan Who Made Her Home In Fleetwood In 1962. Died 16 May 2018 Aged 91, Now Reunited With Our Dad Michael Jamesplease Deliver Plaque To Copse Road Depot",Seats And Shelters (Non Bm),
Wyre Council,http://opendatacommunities.org/doc/district-council/wyre,30/12/2020,People and Places,Highways,133B,Glasdon Uk Ltd,07/12/2020,PE131474,55.73,0.00,"Supply One Memorial Plaque Only.Plaque Inscription To Read In The Memory Of Humphrey Leylandfrom  01.06.1930 To 26.11.2018 And May Leyland 08.08.1930 To 02.10.2020Their Special Place Please Deliver To Copse Road Depot, Copse Road, Fleetw",Seats And Shelters (Non Bm),
Wyre Council,http://opendatacommunities.org/doc/district-council/wyre,30/12/2020,People and Places,Highways,133B,Glasdon Uk Ltd,07/12/2020,PE131414,377.31,0.00,"Supply One Black Phoenix Memorial Bench With Plaque.Plaque Inscription To Read In The Memory Of Alisa Yeadonfrom 1948 To 2020 Please Deliver Bench To Copse Road Depot, Copse Road, Fleetwood.  Please Contact Bob Greaves On 07967 116043 For Ac",Seats And Shelters (Non Bm),
Wyre Council,http://opendatacommunities.org/doc/district-council/wyre,30/12/2020,People and Places,Highways,133B,Glasdon Uk Ltd,21/12/2020,PE131840,377.31,0.00,"Supply One Black Phoenix Memorial Bench With Plaque.Plaque Inscription To Read In The Memory Of Norman Arthur Wilson06/06/1935 ? 17/01/2019 Please Deliver Bench To Copse Road Depot, Copse Road, Fleetwood.  Please Contact Bob Greaves On 07967",Seats And Shelters (Non Bm),
Wyre Council,http://opendatacommunities.org/doc/district-council/wyre,30/12/2020,People and Places,Highways,133B,Glasdon Uk Ltd,21/12/2020,PE131842,377.31,0.00,"Supply One Black Phoenix Memorial Bench With Plaque.Plaque Inscription To Read In The Memory Of Brian K Betty20Th May 1932 To 28Th March 2020?Breathe In That Rossall Air, Son?Please Deliver Bench To Copse Road Depot, Copse Road, Fleetwood.",Seats And Shelters (Non Bm),
Wyre Council,http://opendatacommunities.org/doc/district-council/wyre,30/12/2020,People and Places,Highways,133B,Glasdon Uk Ltd,21/12/2020,PE131841,377.31,0.00,Supply One Black Phoenix Memorial Bench With Plaque.Plaque Inscription To Read Treasured Memories Of Thomas (Tommy) Hunt28/10/1950 ? 24/02/2019 My Soul Mate And Best Friend I?Ve Ever Had We Had Many Walks By The Sea Front Please Deliver Be,Seats And Shelters (Non Bm),
Wyre Council,http://opendatacommunities.org/doc/district-council/wyre,30/12/2020,People and Places,Central Services to the Public,131C,Water Plus Ltd,21/12/2020,PE131784,51.05,0.00,Water/Waste Water Charges,Sewerage,
Wyre Council,http://opendatacommunities.org/doc/district-council/wyre,30/12/2020,People and Places,Cultural and Related Services,132A,Water Plus Ltd,21/12/2020,PE131784,423.16,0.00,Water/Waste Water Charges,Sewerage,
Wyre Council,http://opendatacommunities.org/doc/district-council/wyre,30/12/2020,People and Places,Cultural and Related Services,132A,Water Plus Ltd,21/12/2020,PE131784,73.80,0.00,Water/Waste Water Charges,Sewerage,
Wyre Council,http://opendatacommunities.org/doc/district-council/wyre,30/12/2020,People and Places,Cultural and Related Services,132A,Water Plus Ltd,21/12/2020,PE131784,59.55,0.00,Water/Waste Water Charges,Sewerage,
Wyre Council,http://opendatacommunities.org/doc/district-council/wyre,30/12/2020,People and Places,Cultural and Related Services,132A,Water Plus Ltd,21/12/2020,PE131784,23.09,0.00,Water/Waste Water Charges,Sewerage,
Wyre Council,http://opendatacommunities.org/doc/district-council/wyre,30/12/2020,People and Places,Cultural and Related Services,132A,Water Plus Ltd,21/12/2020,PE131784,1.22,0.00,Water/Waste Water Charges,Sewerage,
Wyre Council,http://opendatacommunities.org/doc/district-council/wyre,30/12/2020,People and Places,Cultural and Related Services,132A,Water Plus Ltd,21/12/2020,PE131784,36.47,0.00,Water/Waste Water Charges,Sewerage,
Wyre Council,http://opendatacommunities.org/doc/district-council/wyre,30/12/2020,People and Places,Cultural and Related Services,132A,Water Plus Ltd,21/12/2020,PE131784,15.80,0.00,Water/Waste Water Charges,Sewerage,
Wyre Council,http://opendatacommunities.org/doc/district-council/wyre,30/12/2020,People and Places,Cultural and Related Services,132A,Water Plus Ltd,21/12/2020,PE131784,23.09,0.00,Water/Waste Water Charges,Sewerage,
Wyre Council,http://opendatacommunities.org/doc/district-council/wyre,30/12/2020,People and Places,Cultural and Related Services,132A,Water Plus Ltd,21/12/2020,PE131784,14.58,0.00,Water/Waste Water Charges,Sewerage,
Wyre Council,http://opendatacommunities.org/doc/district-council/wyre,30/12/2020,People and Places,Cultural and Related Services,132A,Water Plus Ltd,21/12/2020,PE131784,1.22,0.00,Water/Waste Water Charges,Sewerage,
Wyre Council,http://opendatacommunities.org/doc/district-council/wyre,30/12/2020,People and Places,Environmental Services,132B,Water Plus Ltd,21/12/2020,PE131784,17.02,0.00,Water/Waste Water Charges,Sewerage,
Wyre Council,http://opendatacommunities.org/doc/district-council/wyre,30/12/2020,People and Places,Environmental Services,132B,Water Plus Ltd,21/12/2020,PE131784,6.08,0.00,Water/Waste Water Charges,Sewerage,
Wyre Council,http://opendatacommunities.org/doc/district-council/wyre,30/12/2020,People and Places,Environmental Services,132B,Water Plus Ltd,21/12/2020,PE131784,3.65,0.00,Water/Waste Water Charges,Sewerage,
Wyre Council,http://opendatacommunities.org/doc/district-council/wyre,30/12/2020,People and Places,Environmental Services,132B,Water Plus Ltd,21/12/2020,PE131784,499.90,0.00,Water/Waste Water Charges,Sewerage,
Wyre Council,http://opendatacommunities.org/doc/district-council/wyre,30/12/2020,People and Places,Planning and Development Servs,132C,Water Plus Ltd,21/12/2020,PE131784,29.17,0.00,Water/Waste Water Charges,Sewerage,
Wyre Council,http://opendatacommunities.org/doc/district-council/wyre,30/12/2020,People and Places,Planning and Development Servs,132C,Water Plus Ltd,21/12/2020,PE131784,24.23,0.00,Water/Waste Water Charges,Sewerage,
Wyre Council,http://opendatacommunities.org/doc/district-council/wyre,30/12/2020,People and Places,Support Services,135B,Water Plus Ltd,21/12/2020,PE131784,175.68,0.00,Water/Waste Water Charges,Sewerage,
Wyre Council,http://opendatacommunities.org/doc/district-council/wyre,30/12/2020,Resources,Support Services,135B,Civica Uk Ltd,07/12/2020,RS130765,4539.41,0.00,As Per The Invoice,Software Maintenance,
Wyre Council,http://opendatacommunities.org/doc/district-council/wyre,30/12/2020,Resources,Support Services,135B,Civica Uk Ltd,11/12/2020,RS130539,1309.74,0.00,20/21 Licensing,Software Maintenance,
Wyre Council,http://opendatacommunities.org/doc/district-council/wyre,30/12/2020,Resources,Support Services,135B,Northgate Public Services Uk Ltd,08/12/2020,RS131506,5000.00,0.00,Nps Citizen Access ? Landlord (Ca-Ll) - Saas,Software Maintenance,
Wyre Council,http://opendatacommunities.org/doc/district-council/wyre,30/12/2020,Resources,Support Services,135B,Crown Computing Ltd,07/12/2020,RS131219,975.00,0.00,Annual Maintenance And Provision Of Crown Flexi System September 2020 - March 2021,Software Maintenance,
Wyre Council,http://opendatacommunities.org/doc/district-council/wyre,30/12/2020,Resources,Support Services,135B,Crown Computing Ltd,07/12/2020,RS130727,975.00,0.00,Crown Flexi System1 April 2020 - 31 July 2020,Software Maintenance,
Wyre Council,http://opendatacommunities.org/doc/district-council/wyre,30/12/2020,Resources,Support Services,135B,Crown Computing Ltd,07/12/2020,RS131465,975.00,0.00,Annual Maintenance And Provision Of Crown Flexi System September 2020 - March 2021,Software Maintenance,
Wyre Council,http://opendatacommunities.org/doc/district-council/wyre,30/12/2020,Resources,Support Services,135B,Welldata Ltd,07/12/2020,RS131225,2709.16,0.00,"Contract Services:Managed Services:Iworld (R&B)/Msbhcnorthgate Iworld (Revs And Bens): Managed Service, Business Hoursavailability With Out-Of-Hours Coverincluding Patches,Year End And Annual Billingcontract Services:Managed Services:Periodt",Software Maintenance,
Wyre Council,http://opendatacommunities.org/doc/district-council/wyre,30/12/2020,People and Places,Support Services,135B,Jadu Creative Ltd,07/12/2020,PE130845,27000.00,0.00,Cxm Subscription Year 1 20 Users @ 50 Per User Permonth05/12/2020 - 04/12/2021,Software Maintenance,
Wyre Council,http://opendatacommunities.org/doc/district-council/wyre,30/12/2020,People and Places,Support Services,135B,Jadu Creative Ltd,07/12/2020,PE130845,1800.00,0.00,Platform Management Platform Management For Uat Site06/12/2020 - 05/12/2021,Software Maintenance,
Wyre Council,http://opendatacommunities.org/doc/district-council/wyre,30/12/2020,People and Places,Support Services,135B,Jadu Creative Ltd,07/12/2020,PE130845,6000.00,0.00,Live Hosting06/12/2020 - 05/12/2021,Software Maintenance,
Wyre Council,http://opendatacommunities.org/doc/district-council/wyre,30/12/2020,Resources,Support Services,135B,Jadu Creative Ltd,07/12/2020,RS131241,-15000.00,0.00,Cxm Subscription Year 1 20 Users @ 50 Per User Permonth05/12/2020 - 04/12/2021,Software Maintenance,
Wyre Council,http://opendatacommunities.org/doc/district-council/wyre,30/12/2020,People and Places,Support Services,135B,Mark Garner Tree Services Ltd,17/12/2020,PE131769,950.00,0.00,Parkside View ? Deadwood And Reduce Back Laterals Of White Poplars Encroaching On Mayfieldave Properties                                   I Quote 950.00 Plus Vat,Special Maintenance - Trees,
Wyre Council,http://opendatacommunities.org/doc/district-council/wyre,30/12/2020,People and Places,Support Services,135B,Mark Garner Tree Services Ltd,17/12/2020,PE131769,795.00,0.00,"Item From 0535 Quotationthese Works - Including Site Specific Risks (E.G. Adjacent Norway Maple Tree Currently Supporting Partially Failed Poplar, Including Particularly Wet Grounds) Discussed 02/12/20 With Tree Contractor - M Garner. R.Arrell To",Special Maintenance - Trees,
Wyre Council,http://opendatacommunities.org/doc/district-council/wyre,30/12/2020,People and Places,Support Services,135B,Mark Garner Tree Services Ltd,07/12/2020,PE131452,195.00,0.00,Invoice 914Ryan Arrellcivic Centrebreck Rdpoultonfy6 7Pudate: 25/11/2020Garstang Rd Cemetery ? For Removing Hung Up Limb From White Poplar                       195.00    Plus Vat      39.00                        234.00,Special Maintenance - Trees,
Wyre Council,http://opendatacommunities.org/doc/district-council/wyre,30/12/2020,People and Places,Environmental Services,132B,Builders Supplies (West Coast) Ltd,07/12/2020,PE131345,20.79,0.00,Concrete @ 14.24 Cement @ 4.45 Sand  2.10,Special Works,
Wyre Council,http://opendatacommunities.org/doc/district-council/wyre,30/12/2020,People and Places,Environmental Services,132B,Wyre Memorials Ltd,14/12/2020,PE131660,50.00,0.00,Move Wilson T/346 Fleetwood Cemetery,Special Works,
Wyre Council,http://opendatacommunities.org/doc/district-council/wyre,30/12/2020,People and Places,Environmental Services,132B,Wyre Memorials Ltd,14/12/2020,PE131660,180.00,0.00,Move Front Of Steel F/627 Wallbank F/628 & Refix,Special Works,
Wyre Council,http://opendatacommunities.org/doc/district-council/wyre,30/12/2020,People and Places,Environmental Services,132B,Wyre Memorials Ltd,14/12/2020,PE131660,50.00,0.00,Move Wolstenholme D/76 Preesall Cemetery,Special Works,
Wyre Council,http://opendatacommunities.org/doc/district-council/wyre,30/12/2020,People and Places,Environmental Services,132B,Wyre Memorials Ltd,14/12/2020,PE131660,145.00,0.00,Move & Refix Carter C/48 Preesall Cem - Burial Behind 1/12/20,Special Works,
Wyre Council,http://opendatacommunities.org/doc/district-council/wyre,30/12/2020,People and Places,Environmental Services,132B,Wyre Memorials Ltd,22/12/2020,PE131843,50.00,0.00,Move Wade S/16 For Burial,Special Works,
Wyre Council,http://opendatacommunities.org/doc/district-council/wyre,30/12/2020,People and Places,Environmental Services,132B,Wyre Memorials Ltd,22/12/2020,PE131843,145.00,0.00, Preesall Mollart E/77Move And Refix 17/12/20,Special Works,
Wyre Council,http://opendatacommunities.org/doc/district-council/wyre,30/12/2020,People and Places,Environmental Services,132B,Wyre Memorials Ltd,07/12/2020,PE131305,145.00,0.00,Please Move & Refix Rc/R/4 `Betty` For Burial Behind In Id,Special Works,
Wyre Council,http://opendatacommunities.org/doc/district-council/wyre,30/12/2020,People and Places,Environmental Services,132B,Wyre Memorials Ltd,07/12/2020,PE131305,50.00,0.00,Move Hurley Cc/12 Fleetwood Burial 25/11/20,Special Works,
Wyre Council,http://opendatacommunities.org/doc/district-council/wyre,30/12/2020,People and Places,Environmental Services,132B,Wyre Memorials Ltd,07/12/2020,PE131305,50.00,0.00,Preesall Cemetery Move Hick Nc/A/397,Special Works,
Wyre Council,http://opendatacommunities.org/doc/district-council/wyre,30/12/2020,People and Places,Environmental Services,132B,Wyre Memorials Ltd,07/12/2020,PE131305,50.00,0.00,Move Till H/10,Special Works,
Wyre Council,http://opendatacommunities.org/doc/district-council/wyre,30/12/2020,People and Places,Support Services,135B,Lyreco Uk Ltd,10/12/2020,PE131560,21.80,0.00,Pukka White A4 Wirebound Pads (Ruled/Margin) - Pack Of 5 (5 X 100 Sheets),Stationery,
Wyre Council,http://opendatacommunities.org/doc/district-council/wyre,30/12/2020,People and Places,Support Services,135B,Lyreco Uk Ltd,10/12/2020,PE131560,32.95,0.00,Cambridge Everyday Legal Pad A4 Graph Pad - Pack Of 5,Stationery,
Wyre Council,http://opendatacommunities.org/doc/district-council/wyre,30/12/2020,People and Places,Support Services,135B,Lyreco Uk Ltd,10/12/2020,PE131560,9.50,0.00,Lyreco Week/View Diary A5 Blk,Stationery,
Wyre Council,http://opendatacommunities.org/doc/district-council/wyre,30/12/2020,People and Places,Support Services,135B,Lyreco Uk Ltd,10/12/2020,PE131560,0.14,0.00,Lyreco Hb Eraser Tipped Pencils - Box Of 12,Stationery,
Wyre Council,http://opendatacommunities.org/doc/district-council/wyre,30/12/2020,People and Places,Support Services,135B,Lyreco Uk Ltd,10/12/2020,PE131560,11.10,0.00,Staedtler Lumocolor Permanent Pens Medium Black - Box Of 10,Stationery,
Wyre Council,http://opendatacommunities.org/doc/district-council/wyre,30/12/2020,Resources,Support Services,135B,Lyreco Uk Ltd,09/12/2020,RS131563,180.00,0.00,15 Boxes Of 5 Reams Multicopy Zero Carbon A4 White 80Gsm Ref. 9809881@12.00 Per Box Of 5 Reams,Stationery,
Wyre Council,http://opendatacommunities.org/doc/district-council/wyre,30/12/2020,Resources,Support Services,135B,Lyreco Uk Ltd,09/12/2020,RS131566,-37.19,0.00,New Guardian 7366 Window Gussett Envelope Manilla 130Gsm - Box Of 100,Stationery,
Wyre Council,http://opendatacommunities.org/doc/district-council/wyre,30/12/2020,Resources,Support Services,135B,Lyreco Uk Ltd,09/12/2020,RS131568,37.19,0.00,New Guardian 7366 Window Gussett Envelope Manilla 130Gsm - Box Of 100,Stationery,
Wyre Council,http://opendatacommunities.org/doc/district-council/wyre,30/12/2020,Resources,Support Services,135B,Lyreco Uk Ltd,09/12/2020,RS131566,37.19,0.00,New Guardian 7366 Window Gussett Envelope Manilla 130Gsm - Box Of 100,Stationery,
Wyre Council,http://opendatacommunities.org/doc/district-council/wyre,30/12/2020,People and Places,Central Services to the Public,131C,Lyreco Uk Ltd,10/12/2020,PE131560,32.99,0.00,Guildhall Pink Foolscap Spring Pocket Transfer Files 315Gsm - Box Of 25,Stationery,
Wyre Council,http://opendatacommunities.org/doc/district-council/wyre,30/12/2020,People and Places,Central Services to the Public,131C,Lyreco Uk Ltd,10/12/2020,PE131560,32.99,0.00,Guildhall Yellow Foolscap Spring Pocket Transfer Files 315Gsm - Box Of 25,Stationery,
Wyre Council,http://opendatacommunities.org/doc/district-council/wyre,30/12/2020,People and Places,Central Services to the Public,131C,Lyreco Uk Ltd,10/12/2020,PE131560,2.88,0.00,Lyreco Grip Gel Ink Black Pens 0.5Mm Line Width - Box Of 12,Stationery,
Wyre Council,http://opendatacommunities.org/doc/district-council/wyre,30/12/2020,People and Places,Central Services to the Public,131C,Lyreco Uk Ltd,10/12/2020,PE131560,5.03,0.00,Papermate Non-Stop Mechanical Hb Pencils - Box Of 12,Stationery,
Wyre Council,http://opendatacommunities.org/doc/district-council/wyre,30/12/2020,Resources,Support Services,135B,Lyreco Uk Ltd,10/12/2020,RS131564,2.94,0.00,Lyreco Yearly Calendar,Stationery,
Wyre Council,http://opendatacommunities.org/doc/district-council/wyre,30/12/2020,Resources,Support Services,135B,Lyreco Uk Ltd,10/12/2020,RS131564,0.95,0.00,Lyreco Week/View Diary A5 Blk,Stationery,
Wyre Council,http://opendatacommunities.org/doc/district-council/wyre,30/12/2020,Resources,Support Services,135B,Lyreco Uk Ltd,10/12/2020,RS131564,8.45,0.00,Lyreco Hard Back Twin Wire Notebook A4 - Pack Of 5,Stationery,
Wyre Council,http://opendatacommunities.org/doc/district-council/wyre,30/12/2020,People and Places,Support Services,135B,Lyreco Uk Ltd,11/12/2020,PE131557,4.70,0.00,Lyreco White A4 Refill Pads (Ruled/Margin) - Pack Of 10,Stationery,
Wyre Council,http://opendatacommunities.org/doc/district-council/wyre,30/12/2020,People and Places,Support Services,135B,Lyreco Uk Ltd,11/12/2020,PE131557,2.40,0.00,Lyreco Budget White 8 X 5Inch Shorthand Notebooks (Ruled) - Pack Of 20(X80 Shts),Stationery,
Wyre Council,http://opendatacommunities.org/doc/district-council/wyre,30/12/2020,People and Places,Support Services,135B,Lyreco Uk Ltd,11/12/2020,PE131557,5.90,0.00,Lyreco A4 Ruled Manuscript Book - 96 Sheets,Stationery,
Wyre Council,http://opendatacommunities.org/doc/district-council/wyre,30/12/2020,People and Places,Support Services,135B,Lyreco Uk Ltd,11/12/2020,PE131557,1.44,0.00,Lyreco Plain Yellow Sticky Notes 76 X 76Mm - Pack Of 12 Pads,Stationery,
Wyre Council,http://opendatacommunities.org/doc/district-council/wyre,30/12/2020,People and Places,Support Services,135B,Lyreco Uk Ltd,11/12/2020,PE131557,8.45,0.00,Lyreco Hard Back Twin Wire Notebook A4 - Pack Of 5,Stationery,
Wyre Council,http://opendatacommunities.org/doc/district-council/wyre,30/12/2020,People and Places,Support Services,135B,Lyreco Uk Ltd,11/12/2020,PE131557,0.50,0.00,Lyreco Budget Yellow Highlighters - Pack Of 10,Stationery,
Wyre Council,http://opendatacommunities.org/doc/district-council/wyre,30/12/2020,People and Places,Support Services,135B,Lyreco Uk Ltd,11/12/2020,PE131557,0.50,0.00,Lyreco Budget Orange Highlighters - Pack Of 10,Stationery,
Wyre Council,http://opendatacommunities.org/doc/district-council/wyre,30/12/2020,People and Places,Support Services,135B,Lyreco Uk Ltd,11/12/2020,PE131557,4.43,0.00,Exacompta Doc Wallet A4 Velcro Blue Pack Of 5,Stationery,
Wyre Council,http://opendatacommunities.org/doc/district-council/wyre,30/12/2020,People and Places,Support Services,135B,Lyreco Uk Ltd,11/12/2020,PE131557,1.41,0.00,Lyreco Budget A4 Punched Pockets 55 Micron-Pack Of 100,Stationery,
Wyre Council,http://opendatacommunities.org/doc/district-council/wyre,30/12/2020,People and Places,Support Services,135B,Lyreco Uk Ltd,11/12/2020,PE131557,1.79,0.00,Maped Tonic Double Hole Pencil Sharpener Assorted,Stationery,
Wyre Council,http://opendatacommunities.org/doc/district-council/wyre,30/12/2020,People and Places,Support Services,135B,Lyreco Uk Ltd,11/12/2020,PE131557,0.24,0.00,Pencil Sharpener - Metal With Single Wedge,Stationery,
Wyre Council,http://opendatacommunities.org/doc/district-council/wyre,30/12/2020,People and Places,Support Services,135B,Lyreco Uk Ltd,11/12/2020,PE131557,9.20,0.00,Lyreco Polypropylene Black A4 Lever Arch Files - Box Of 10,Stationery,
Wyre Council,http://opendatacommunities.org/doc/district-council/wyre,30/12/2020,Resources,Corporate and Democratic Core,131A,Lyreco Uk Ltd,11/12/2020,RS131608,9.20,0.00,Lyreco Polypropylene Black A4 Lever Arch Files - Box Of 10,Stationery,
Wyre Council,http://opendatacommunities.org/doc/district-council/wyre,30/12/2020,Resources,Corporate and Democratic Core,131A,Lyreco Uk Ltd,11/12/2020,RS131608,2.08,0.00,Chart Drawing Pins Assorted Colour 10Mm - Box Of 25,Stationery,
Wyre Council,http://opendatacommunities.org/doc/district-council/wyre,30/12/2020,Resources,Corporate and Democratic Core,131A,Lyreco Uk Ltd,11/12/2020,RS131608,3.49,0.00,Lyreco Assorted Foolscap Document Wallets 290Gsm 32Mm Capacity - Box Of 50,Stationery,
Wyre Council,http://opendatacommunities.org/doc/district-council/wyre,30/12/2020,Resources,Central Services to the Public,131C,Print Image Network Ltd,07/12/2020,RS131473,784.65,0.00,For Wyre 2020 Itr Mailings As Per Your Order Acknowledgement 7165.,Stationery,
Wyre Council,http://opendatacommunities.org/doc/district-council/wyre,30/12/2020,People and Places,Current Assets,130B,Watson Fuels,21/12/2020,PE131760,5302.61,0.00,Supply And Deliver  Red Diesel  12005 Litres @ 44.17 Ppl 11/12/20 11:05,Stock - Copse Road Fuel,
Wyre Council,http://opendatacommunities.org/doc/district-council/wyre,30/12/2020,People and Places,Current Assets,130B,Watson Fuels,21/12/2020,PE131761,21810.62,0.00,Supply And Deliver  White Diesel 24002 Litres @ 90.87 Ppl  11/12/20 11:05Am,Stock - Copse Road Fuel,
Wyre Council,http://opendatacommunities.org/doc/district-council/wyre,30/12/2020,Resources,Current Assets,130B,Whistl Uk Limited,09/12/2020,RS131552,245.90,0.00,Postage For 2020/2021,Stores Purchases,
Wyre Council,http://opendatacommunities.org/doc/district-council/wyre,30/12/2020,Resources,Current Assets,130B,Whistl Uk Limited,07/12/2020,RS131422,205.54,0.00,Postage For 2020/2021,Stores Purchases,
Wyre Council,http://opendatacommunities.org/doc/district-council/wyre,30/12/2020,Resources,Current Assets,130B,Whistl Uk Limited,07/12/2020,RS131520,153.32,0.00,Postage For 2020/2021,Stores Purchases,
Wyre Council,http://opendatacommunities.org/doc/district-council/wyre,30/12/2020,Resources,Current Assets,130B,Whistl Uk Limited,17/12/2020,RS131739,352.23,0.00,Postage For 2020/2021,Stores Purchases,
Wyre Council,http://opendatacommunities.org/doc/district-council/wyre,30/12/2020,Resources,Current Assets,130B,Whistl Uk Limited,22/12/2020,RS131859,165.75,0.00,Postage For 2020/2021,Stores Purchases,
Wyre Council,http://opendatacommunities.org/doc/district-council/wyre,30/12/2020,Resources,Current Assets,130B,Pitney Bowes Ltd   Postage By Phone,07/12/2020,RS131415,1003.65,0.00,Top Up Levele,Stores Purchases,
Wyre Council,http://opendatacommunities.org/doc/district-council/wyre,30/12/2020,People and Places,Central Services to the Public,131C,Water Plus Ltd,21/12/2020,PE131784,14.58,0.00,Water/Waste Water Charges,Surface Water/Highway Drainage,
Wyre Council,http://opendatacommunities.org/doc/district-council/wyre,30/12/2020,People and Places,Cultural and Related Services,132A,Water Plus Ltd,21/12/2020,PE131784,717.21,0.00,Water/Waste Water Charges,Surface Water/Highway Drainage,
Wyre Council,http://opendatacommunities.org/doc/district-council/wyre,30/12/2020,People and Places,Cultural and Related Services,132A,Water Plus Ltd,21/12/2020,PE131784,2.47,0.00,Water/Waste Water Charges,Surface Water/Highway Drainage,
Wyre Council,http://opendatacommunities.org/doc/district-council/wyre,30/12/2020,People and Places,Cultural and Related Services,132A,Water Plus Ltd,21/12/2020,PE131784,1438.06,0.00,Water/Waste Water Charges,Surface Water/Highway Drainage,
Wyre Council,http://opendatacommunities.org/doc/district-council/wyre,30/12/2020,People and Places,Cultural and Related Services,132A,Water Plus Ltd,21/12/2020,PE131784,2.47,0.00,Water/Waste Water Charges,Surface Water/Highway Drainage,
Wyre Council,http://opendatacommunities.org/doc/district-council/wyre,30/12/2020,People and Places,Cultural and Related Services,132A,Water Plus Ltd,21/12/2020,PE131784,2.47,0.00,Water/Waste Water Charges,Surface Water/Highway Drainage,
Wyre Council,http://opendatacommunities.org/doc/district-council/wyre,30/12/2020,People and Places,Cultural and Related Services,132A,Water Plus Ltd,21/12/2020,PE131784,319.58,0.00,Water/Waste Water Charges,Surface Water/Highway Drainage,
Wyre Council,http://opendatacommunities.org/doc/district-council/wyre,30/12/2020,People and Places,Cultural and Related Services,132A,Water Plus Ltd,21/12/2020,PE131784,168.65,0.00,Water/Waste Water Charges,Surface Water/Highway Drainage,
Wyre Council,http://opendatacommunities.org/doc/district-council/wyre,30/12/2020,People and Places,Cultural and Related Services,132A,Water Plus Ltd,21/12/2020,PE131784,32.53,0.00,Water/Waste Water Charges,Surface Water/Highway Drainage,
Wyre Council,http://opendatacommunities.org/doc/district-council/wyre,30/12/2020,People and Places,Environmental Services,132B,Water Plus Ltd,21/12/2020,PE131784,17.04,0.00,Water/Waste Water Charges,Surface Water/Highway Drainage,
Wyre Council,http://opendatacommunities.org/doc/district-council/wyre,30/12/2020,People and Places,Environmental Services,132B,Water Plus Ltd,21/12/2020,PE131784,14.57,0.00,Water/Waste Water Charges,Surface Water/Highway Drainage,
Wyre Council,http://opendatacommunities.org/doc/district-council/wyre,30/12/2020,People and Places,Environmental Services,132B,Water Plus Ltd,21/12/2020,PE131784,154.07,0.00,Water/Waste Water Charges,Surface Water/Highway Drainage,
Wyre Council,http://opendatacommunities.org/doc/district-council/wyre,30/12/2020,People and Places,Environmental Services,132B,Water Plus Ltd,21/12/2020,PE131784,348.24,0.00,Water/Waste Water Charges,Surface Water/Highway Drainage,
Wyre Council,http://opendatacommunities.org/doc/district-council/wyre,30/12/2020,People and Places,Planning and Development Servs,132C,Water Plus Ltd,21/12/2020,PE131784,4.94,0.00,Water/Waste Water Charges,Surface Water/Highway Drainage,
Wyre Council,http://opendatacommunities.org/doc/district-council/wyre,30/12/2020,People and Places,Planning and Development Servs,132C,Water Plus Ltd,21/12/2020,PE131784,38.80,0.00,Water/Waste Water Charges,Surface Water/Highway Drainage,
Wyre Council,http://opendatacommunities.org/doc/district-council/wyre,30/12/2020,People and Places,Support Services,135B,Water Plus Ltd,21/12/2020,PE131784,2.47,0.00,Water/Waste Water Charges,Surface Water/Highway Drainage,
Wyre Council,http://opendatacommunities.org/doc/district-council/wyre,30/12/2020,People and Places,Cultural and Related Services,132A,Water Plus Ltd,21/12/2020,PE131784,2.47,0.00,Water/Waste Water Charges,Surface Water/Highway Drainage,
Wyre Council,http://opendatacommunities.org/doc/district-council/wyre,30/12/2020,People and Places,Cultural and Related Services,132A,Water Plus Ltd,21/12/2020,PE131784,14.57,0.00,Water/Waste Water Charges,Surface Water/Highway Drainage,
Wyre Council,http://opendatacommunities.org/doc/district-council/wyre,30/12/2020,People and Places,Cultural and Related Services,132A,Water Plus Ltd,21/12/2020,PE131784,14.57,0.00,Water/Waste Water Charges,Surface Water/Highway Drainage,
Wyre Council,http://opendatacommunities.org/doc/district-council/wyre,30/12/2020,People and Places,Cultural and Related Services,132A,Water Plus Ltd,21/12/2020,PE131784,14.57,0.00,Water/Waste Water Charges,Surface Water/Highway Drainage,
Wyre Council,http://opendatacommunities.org/doc/district-council/wyre,30/12/2020,Resources,Central Services to the Public,131C,Civica Uk Ltd,07/12/2020,RS131477,100.00,0.00,For Attendance By Andrea Mullin At The Xpress Virtual User Group Meeting To Be Held On Wednesday 20 January 2021,Technical Training,
Wyre Council,http://opendatacommunities.org/doc/district-council/wyre,30/12/2020,Resources,Support Services,135B,Mbl (Seminars) Ltd,15/12/2020,RS131711,500.00,0.00,Mbl Smart Plan Top Up,Technical Training,
Wyre Council,http://opendatacommunities.org/doc/district-council/wyre,30/12/2020,Resources,Planning and Development Servs,132C,British Telecommunications Plc,17/12/2020,RS131752,1.56,0.00,Annual Bill,Telephone - Buildings And Offices,
Wyre Council,http://opendatacommunities.org/doc/district-council/wyre,30/12/2020,Resources,Planning and Development Servs,132C,British Telecommunications Plc,08/12/2020,RS131334,1.56,0.00,Annual Bill,Telephone - Buildings And Offices,
Wyre Council,http://opendatacommunities.org/doc/district-council/wyre,30/12/2020,Resources,Cultural and Related Services,132A,British Telecommunications Plc,17/12/2020,RS131752,1.55,0.00,Annual Bill,Telephone - Buildings And Offices,
Wyre Council,http://opendatacommunities.org/doc/district-council/wyre,30/12/2020,Resources,Cultural and Related Services,132A,British Telecommunications Plc,17/12/2020,RS131752,14.18,0.00,Annual Bill,Telephone - Buildings And Offices,
Wyre Council,http://opendatacommunities.org/doc/district-council/wyre,30/12/2020,Resources,Environmental Services,132B,British Telecommunications Plc,17/12/2020,RS131752,1.03,0.00,Annual Bill,Telephone - Buildings And Offices,
Wyre Council,http://opendatacommunities.org/doc/district-council/wyre,30/12/2020,Resources,Cultural and Related Services,132A,British Telecommunications Plc,08/12/2020,RS131334,1.56,0.00,Annual Bill,Telephone - Buildings And Offices,
Wyre Council,http://opendatacommunities.org/doc/district-council/wyre,30/12/2020,Resources,Cultural and Related Services,132A,British Telecommunications Plc,08/12/2020,RS131334,14.19,0.00,Annual Bill,Telephone - Buildings And Offices,
Wyre Council,http://opendatacommunities.org/doc/district-council/wyre,30/12/2020,Resources,Environmental Services,132B,British Telecommunications Plc,08/12/2020,RS131334,1.04,0.00,Annual Bill,Telephone - Buildings And Offices,
Wyre Council,http://opendatacommunities.org/doc/district-council/wyre,30/12/2020,Resources,Planning and Development Servs,132C,British Telecommunications Plc,08/12/2020,RS131334,30.20,0.00,Annual Bill,Telephone - Buildings And Offices,
Wyre Council,http://opendatacommunities.org/doc/district-council/wyre,30/12/2020,Resources,Planning and Development Servs,132C,British Telecommunications Plc,17/12/2020,RS131752,30.25,0.00,Annual Bill,Telephone - Buildings And Offices,
Wyre Council,http://opendatacommunities.org/doc/district-council/wyre,30/12/2020,People and Places,Environmental Services,132B,M J Wilkinson,09/12/2020,PE131535,217.38,0.00,Misc Plant Hiresea Wall Works,Vehicle Hire,
Wyre Council,http://opendatacommunities.org/doc/district-council/wyre,30/12/2020,People and Places,Non Service Related Exp,137F,Gibson Garden Machinery Ltd,16/12/2020,PE131743,10250.00,0.00,"Supply 1 New Eleit Shredder Prof 6 Cross Country 14Hp Suburu Ex40 Es, Model Code - Ma 032 020 439 As Per The Chest Dn505479 As Per Quoted @ 10,250Delivery To Copse Road Depot, Copse Road, Fleetwood, Lancashire, Fy7 6Rp.",Vehicles,
Wyre Council,http://opendatacommunities.org/doc/district-council/wyre,30/12/2020,People and Places,Central Services to the Public,131C,Water Plus Ltd,21/12/2020,PE131784,75.13,0.00,Water/Waste Water Charges,Water Charges-Metered,
Wyre Council,http://opendatacommunities.org/doc/district-council/wyre,30/12/2020,People and Places,Central Services to the Public,131C,Water Plus Ltd,21/12/2020,PE131784,3.14,0.00,Water/Waste Water Charges,Water Charges-Metered,
Wyre Council,http://opendatacommunities.org/doc/district-council/wyre,30/12/2020,People and Places,Cultural and Related Services,132A,Water Plus Ltd,21/12/2020,PE131784,1.85,0.00,Water/Waste Water Charges,Water Charges-Metered,
Wyre Council,http://opendatacommunities.org/doc/district-council/wyre,30/12/2020,People and Places,Cultural and Related Services,132A,Water Plus Ltd,21/12/2020,PE131784,6.69,0.00,Water/Waste Water Charges,Water Charges-Metered,
Wyre Council,http://opendatacommunities.org/doc/district-council/wyre,30/12/2020,People and Places,Cultural and Related Services,132A,Water Plus Ltd,21/12/2020,PE131784,605.74,0.00,Water/Waste Water Charges,Water Charges-Metered,
Wyre Council,http://opendatacommunities.org/doc/district-council/wyre,30/12/2020,People and Places,Cultural and Related Services,132A,Water Plus Ltd,21/12/2020,PE131784,4.21,0.00,Water/Waste Water Charges,Water Charges-Metered,
Wyre Council,http://opendatacommunities.org/doc/district-council/wyre,30/12/2020,People and Places,Cultural and Related Services,132A,Water Plus Ltd,21/12/2020,PE131784,19.30,0.00,Water/Waste Water Charges,Water Charges-Metered,
Wyre Council,http://opendatacommunities.org/doc/district-council/wyre,30/12/2020,People and Places,Cultural and Related Services,132A,Water Plus Ltd,21/12/2020,PE131784,2.56,0.00,Water/Waste Water Charges,Water Charges-Metered,
Wyre Council,http://opendatacommunities.org/doc/district-council/wyre,30/12/2020,People and Places,Cultural and Related Services,132A,Water Plus Ltd,21/12/2020,PE131784,107.52,0.00,Water/Waste Water Charges,Water Charges-Metered,
Wyre Council,http://opendatacommunities.org/doc/district-council/wyre,30/12/2020,People and Places,Cultural and Related Services,132A,Water Plus Ltd,21/12/2020,PE131784,5.16,0.00,Water/Waste Water Charges,Water Charges-Metered,
Wyre Council,http://opendatacommunities.org/doc/district-council/wyre,30/12/2020,People and Places,Cultural and Related Services,132A,Water Plus Ltd,21/12/2020,PE131784,8.32,0.00,Water/Waste Water Charges,Water Charges-Metered,
Wyre Council,http://opendatacommunities.org/doc/district-council/wyre,30/12/2020,People and Places,Cultural and Related Services,132A,Water Plus Ltd,21/12/2020,PE131784,14.15,0.00,Water/Waste Water Charges,Water Charges-Metered,
Wyre Council,http://opendatacommunities.org/doc/district-council/wyre,30/12/2020,People and Places,Cultural and Related Services,132A,Water Plus Ltd,21/12/2020,PE131784,87.35,0.00,Water/Waste Water Charges,Water Charges-Metered,
Wyre Council,http://opendatacommunities.org/doc/district-council/wyre,30/12/2020,People and Places,Cultural and Related Services,132A,Water Plus Ltd,21/12/2020,PE131784,3.14,0.00,Water/Waste Water Charges,Water Charges-Metered,
Wyre Council,http://opendatacommunities.org/doc/district-council/wyre,30/12/2020,People and Places,Cultural and Related Services,132A,Water Plus Ltd,21/12/2020,PE131784,35.00,0.00,Water/Waste Water Charges,Water Charges-Metered,
Wyre Council,http://opendatacommunities.org/doc/district-council/wyre,30/12/2020,People and Places,Cultural and Related Services,132A,Water Plus Ltd,21/12/2020,PE131784,6.69,0.00,Water/Waste Water Charges,Water Charges-Metered,
Wyre Council,http://opendatacommunities.org/doc/district-council/wyre,30/12/2020,People and Places,Cultural and Related Services,132A,Water Plus Ltd,21/12/2020,PE131784,3.59,0.00,Water/Waste Water Charges,Water Charges-Metered,
Wyre Council,http://opendatacommunities.org/doc/district-council/wyre,30/12/2020,People and Places,Cultural and Related Services,132A,Water Plus Ltd,21/12/2020,PE131784,4.21,0.00,Water/Waste Water Charges,Water Charges-Metered,
Wyre Council,http://opendatacommunities.org/doc/district-council/wyre,30/12/2020,People and Places,Cultural and Related Services,132A,Water Plus Ltd,21/12/2020,PE131784,54.19,0.00,Water/Waste Water Charges,Water Charges-Metered,
Wyre Council,http://opendatacommunities.org/doc/district-council/wyre,30/12/2020,People and Places,Cultural and Related Services,132A,Water Plus Ltd,21/12/2020,PE131784,9.83,0.00,Water/Waste Water Charges,Water Charges-Metered,
Wyre Council,http://opendatacommunities.org/doc/district-council/wyre,30/12/2020,People and Places,Cultural and Related Services,132A,Water Plus Ltd,21/12/2020,PE131784,24.53,0.00,Water/Waste Water Charges,Water Charges-Metered,
Wyre Council,http://opendatacommunities.org/doc/district-council/wyre,30/12/2020,People and Places,Cultural and Related Services,132A,Water Plus Ltd,21/12/2020,PE131784,3.14,0.00,Water/Waste Water Charges,Water Charges-Metered,
Wyre Council,http://opendatacommunities.org/doc/district-council/wyre,30/12/2020,People and Places,Cultural and Related Services,132A,Water Plus Ltd,21/12/2020,PE131784,1.85,0.00,Water/Waste Water Charges,Water Charges-Metered,
Wyre Council,http://opendatacommunities.org/doc/district-council/wyre,30/12/2020,People and Places,Cultural and Related Services,132A,Water Plus Ltd,21/12/2020,PE131784,2.56,0.00,Water/Waste Water Charges,Water Charges-Metered,
Wyre Council,http://opendatacommunities.org/doc/district-council/wyre,30/12/2020,People and Places,Cultural and Related Services,132A,Water Plus Ltd,21/12/2020,PE131784,35.00,0.00,Water/Waste Water Charges,Water Charges-Metered,
Wyre Council,http://opendatacommunities.org/doc/district-council/wyre,30/12/2020,People and Places,Cultural and Related Services,132A,Water Plus Ltd,21/12/2020,PE131784,2.69,0.00,Water/Waste Water Charges,Water Charges-Metered,
Wyre Council,http://opendatacommunities.org/doc/district-council/wyre,30/12/2020,People and Places,Cultural and Related Services,132A,Water Plus Ltd,21/12/2020,PE131784,24.64,0.00,Water/Waste Water Charges,Water Charges-Metered,
Wyre Council,http://opendatacommunities.org/doc/district-council/wyre,30/12/2020,People and Places,Cultural and Related Services,132A,Water Plus Ltd,21/12/2020,PE131784,5.25,0.00,Water/Waste Water Charges,Water Charges-Metered,
Wyre Council,http://opendatacommunities.org/doc/district-council/wyre,30/12/2020,People and Places,Cultural and Related Services,132A,Water Plus Ltd,21/12/2020,PE131784,17.76,0.00,Water/Waste Water Charges,Water Charges-Metered,
Wyre Council,http://opendatacommunities.org/doc/district-council/wyre,30/12/2020,People and Places,Cultural and Related Services,132A,Water Plus Ltd,21/12/2020,PE131784,8.39,0.00,Water/Waste Water Charges,Water Charges-Metered,
Wyre Council,http://opendatacommunities.org/doc/district-council/wyre,30/12/2020,People and Places,Cultural and Related Services,132A,Water Plus Ltd,21/12/2020,PE131784,3.59,0.00,Water/Waste Water Charges,Water Charges-Metered,
Wyre Council,http://opendatacommunities.org/doc/district-council/wyre,30/12/2020,People and Places,Cultural and Related Services,132A,Water Plus Ltd,21/12/2020,PE131784,2.69,0.00,Water/Waste Water Charges,Water Charges-Metered,
Wyre Council,http://opendatacommunities.org/doc/district-council/wyre,30/12/2020,People and Places,Environmental Services,132B,Water Plus Ltd,21/12/2020,PE131784,28.12,0.00,Water/Waste Water Charges,Water Charges-Metered,
Wyre Council,http://opendatacommunities.org/doc/district-council/wyre,30/12/2020,People and Places,Environmental Services,132B,Water Plus Ltd,21/12/2020,PE131784,6.90,0.00,Water/Waste Water Charges,Water Charges-Metered,
Wyre Council,http://opendatacommunities.org/doc/district-council/wyre,30/12/2020,People and Places,Environmental Services,132B,Water Plus Ltd,21/12/2020,PE131784,1.85,0.00,Water/Waste Water Charges,Water Charges-Metered,
Wyre Council,http://opendatacommunities.org/doc/district-council/wyre,30/12/2020,People and Places,Environmental Services,132B,Water Plus Ltd,21/12/2020,PE131784,2.56,0.00,Water/Waste Water Charges,Water Charges-Metered,
Wyre Council,http://opendatacommunities.org/doc/district-council/wyre,30/12/2020,People and Places,Environmental Services,132B,Water Plus Ltd,21/12/2020,PE131784,10.57,0.00,Water/Waste Water Charges,Water Charges-Metered,
Wyre Council,http://opendatacommunities.org/doc/district-council/wyre,30/12/2020,People and Places,Environmental Services,132B,Water Plus Ltd,21/12/2020,PE131784,2.69,0.00,Water/Waste Water Charges,Water Charges-Metered,
Wyre Council,http://opendatacommunities.org/doc/district-council/wyre,30/12/2020,People and Places,Environmental Services,132B,Water Plus Ltd,21/12/2020,PE131784,7.08,0.00,Water/Waste Water Charges,Water Charges-Metered,
Wyre Council,http://opendatacommunities.org/doc/district-council/wyre,30/12/2020,People and Places,Environmental Services,132B,Water Plus Ltd,21/12/2020,PE131784,2.56,0.00,Water/Waste Water Charges,Water Charges-Metered,
Wyre Council,http://opendatacommunities.org/doc/district-council/wyre,30/12/2020,People and Places,Environmental Services,132B,Water Plus Ltd,21/12/2020,PE131784,741.71,0.00,Water/Waste Water Charges,Water Charges-Metered,
Wyre Council,http://opendatacommunities.org/doc/district-council/wyre,30/12/2020,People and Places,Environmental Services,132B,Water Plus Ltd,21/12/2020,PE131784,37.52,0.00,Water/Waste Water Charges,Water Charges-Metered,
Wyre Council,http://opendatacommunities.org/doc/district-council/wyre,30/12/2020,People and Places,Planning and Development Servs,132C,Water Plus Ltd,21/12/2020,PE131784,150.27,0.00,Water/Waste Water Charges,Water Charges-Metered,
Wyre Council,http://opendatacommunities.org/doc/district-council/wyre,30/12/2020,People and Places,Planning and Development Servs,132C,Water Plus Ltd,21/12/2020,PE131784,10.90,0.00,Water/Waste Water Charges,Water Charges-Metered,
Wyre Council,http://opendatacommunities.org/doc/district-council/wyre,30/12/2020,People and Places,Planning and Development Servs,132C,Water Plus Ltd,21/12/2020,PE131784,1.85,0.00,Water/Waste Water Charges,Water Charges-Metered,
Wyre Council,http://opendatacommunities.org/doc/district-council/wyre,30/12/2020,People and Places,Planning and Development Servs,132C,Water Plus Ltd,21/12/2020,PE131784,2.56,0.00,Water/Waste Water Charges,Water Charges-Metered,
Wyre Council,http://opendatacommunities.org/doc/district-council/wyre,30/12/2020,People and Places,Support Services,135B,Water Plus Ltd,21/12/2020,PE131784,252.35,0.00,Water/Waste Water Charges,Water Charges-Metered,
Wyre Council,http://opendatacommunities.org/doc/district-council/wyre,30/12/2020,People and Places,Support Services,135B,Water Plus Ltd,21/12/2020,PE131784,9.37,0.00,Water/Waste Water Charges,Water Charges-Metered,
Wyre Council,http://opendatacommunities.org/doc/district-council/wyre,30/12/2020,People and Places,Support Services,135B,A Forrest & Son,11/12/2020,PE131578,625.00,0.00,Window Cleaning,Window Cleaning,
Wyre Council,http://opendatacommunities.org/doc/district-council/wyre,30/12/2020,People and Places,Cultural and Related Services,132A,A Forrest & Son,22/12/2020,PE131770,300.00,0.00,Cleaning Windows Oct Nov & Dec,Window Cleaning,
